{"text_format":"1","workbook":"xlsx","n_sheets":23,"sheets":["Cover Page","Contents","Facility Info","Operational Data","Operational Summary","Perf. Form 1","Energy Form 1","Permit Compliance","Improvements","Public Liasion","CO2 N2O","Residue Quality ","Water","Air (periodic)","Air (CEMS)","HCl","SO2","NOx","TOC","Particulates","CO 0.5 hourly","CO 95% 10 min","NH3"],"not_rendered":{"charts":8,"images":3,"macros":1,"external_links":2,"defined_names":23,"comments":0,"pivot_tables":0},"unopened":[],"bounds":{"document_bytes":16777216,"sheet_cells":100000,"rows_first":2000,"rows_last":500,"rows_between":2000,"halvings":0,"cell_chars":16384,"cell_head_chars":4096},"cells_cut":0,"cells_raw":0,"read":"whole","date_system":"1900"}

{"sheet":"Cover Page","index":0,"n_rows":53,"n_cols":14,"rows_kept":53,"cut":false,"hidden":false,"merged":[[48,2,48,3],[48,6,48,8],[52,2,52,3],[36,1,36,8],[40,2,40,8],[42,2,42,4],[44,2,44,4],[46,2,46,3],[46,6,46,8],[13,13,18,15],[34,1,34,8],[0,3,5,6],[7,1,23,8],[28,1,28,8],[30,1,30,8],[32,1,32,8]]}
[null,null,null,{"$error":"#VALUE!"}]
[null,null,null,null,null,null,null,null,null,null,null,null,null,"Version 23.4a (for incinerators) - 15/11/2023"]
[]
[null,null,null,null,null,null,null,null,null,null,null,null,null,"Note that there is another version of this template available for co-incinerators"]
[]
[]
[]
[null,{"$error":"#VALUE!"}]
[]
[]
[]
[]
[null,null,null,null,null,null,null,null,null,null,null,null,null,"Notes:"]
[null,null,null,null,null,null,null,null,null,null,null,null,null,"This template may require adjustments by individual operators to meet specific reporting requirements as defined in the site Permit(s)"]
[]
[]
[]
[]
[]
[]
[]
[]
[]
[]
[]
[]
[]
[]
[null,"Annual Performance Report 2023"]
[]
[null,"Permit EPR/HP3349QK"]
[]
[null,"Wolverhampton Energy from Waste Facility "]
[]
[null,"NA"]
[]
[null,"North Midlands Operations Ltd"]
[]
[null,"Year:",2023]
[]
[null,"Address:","Crown Street Wolverhampton West Midlands WV1 1QB"]
[]
[null,"Tel: ","01902 458888"]
[]
[null,"Email: ","kate.harrop@cobaltenergy.co.uk"]
[]
[null,"Prepared by:","A. Whittingham & C. Ballard",null,null,"Position:","Q&E Coordinators"]
[]
[null,"Approved by:","K. Harrop",null,null,"Position:","Group Q&E Manager"]
[]
[null,"Version:",1]
[]
[null,"Issue Date:","2024-01-31"]

{"sheet":"Contents","index":1,"n_rows":45,"n_cols":11,"rows_kept":45,"cut":false,"hidden":false,"merged":[[44,0,47,9],[37,1,37,6],[38,1,38,6],[39,1,39,6],[40,1,40,6],[41,1,41,6],[42,1,42,6],[36,1,36,6],[22,1,22,6],[23,1,23,6],[24,1,24,6],[27,1,27,6],[28,1,28,6],[29,1,29,6],[30,1,30,6],[31,1,31,6],[32,1,32,6],[35,1,35,6],[21,1,21,6],[9,1,9,6],[10,1,10,6],[11,1,11,6],[13,1,13,6],[14,1,14,6],[15,1,15,6],[16,1,16,6],[17,1,17,6],[18,1,18,6],[19,1,19,6],[20,1,20,6],[12,1,12,6],[4,10,7,14],[8,1,8,6],[3,1,3,6],[4,1,4,6],[5,1,5,6],[6,1,6,6],[7,1,7,6]]}
[{"$f":"+'Cover Page'!$B$29","v":"Annual Performance Report 2023"},null,null,null,{"$f":"+'Cover Page'!$B$33","v":"Wolverhampton Energy from Waste Facility "}]
[]
["Contents",null,null,null,null,null,null,null,null,null,"Notes:"]
["Section","Subject",null,null,null,null,null,"Page ",null,null,"Section references and Page nos. to be inserted"]
[null,"Facility Information",null,null,null,null,null,4,null,null,"Sections and Subjects may require adjustment by individual operators to meet specific reporting requirements as defined in the sites Permit(s)"]
[null,"Operational Data",null,null,null,null,null,6]
[null,"Operational Summary",null,null,null,null,null,8]
[null,"Performance Form 1",null,null,null,null,null,9]
[null,"Energy Form 1",null,null,null,null,null,11]
[null,"Permit Compliance",null,null,null,null,null,12]
[null,"Improvements",null,null,null,null,null,14]
[null,"Public Liasion",null,null,null,null,null,15]
[null,"Carbon dioxide and nitrous oxide emissions",null,null,null,null,null,16]
[null,"Residue Quality ",null,null,null,null,null,18]
[null,"Emissions to Water",null,null,null,null,null,19]
[null,"Emissions to Air (periodically monitored)",null,null,null,null,null,20]
[null,"Emissions to Air (continuously monitored)",null,null,null,null,null,22]
[null,"Hydrogen Chloride emissions",null,null,null,null,null,26]
[null,"Sulphur Dioxdie emsissions",null,null,null,null,null,27]
[null,"Oxides of Notrigen emissions",null,null,null,null,null,28]
[null,"Total Organic Carbon emissions",null,null,null,null,null,29]
[null,"Particulate Matter emissions",null,null,null,null,null,30]
[null,"Carbon Monoxide emissions",null,null,null,null,null,31]
[null,"Ammonia emissions",null,null,null,null,null,33]
[]
[]
["Version Control"]
["Section","Information",null,null,null,null,null,"Date"]
["All","V1",null,null,null,null,null,"2024-01-31"]
["All","V1.1 Note on Energy Form about metering issues.",null,null,null,null,null,"2024-01-31"]
[]
[]
[]
[]
["Distribution"]
["Copy","Name, Role",null,null,null,null,null,"No."]
[]
[]
[]
[]
[]
[]
[]
[]
["This report is required under the Industrial Emissions Directive’s Article 55(2) requirements on reporting and public information on waste incineration plants and co-incineration plants, which require the operator to produce an annual report on the functioning and monitoring of the plant and make it available to the public. "]

{"sheet":"Facility Info","index":2,"n_rows":22,"n_cols":11,"rows_kept":22,"cut":false,"hidden":false,"merged":[[4,0,17,8],[21,0,53,8],[4,10,13,13],[21,10,30,13]]}
[{"$f":"+'Cover Page'!$B$29","v":"Annual Performance Report 2023"},null,null,null,{"$f":"+'Cover Page'!$B$33","v":"Wolverhampton Energy from Waste Facility "}]
[]
["Plant Description and Design",null,null,null,null,null,null,null,null,null,"Notes:"]
[]
["The Wolverhampton Energy from Waste Facility utilises municipal waste to recover energy in the form of electricity and steam for export to the local grid. The facility processes approximately 118,000 tpa of waste in two combustion streams which operate using moving grate furnace systems with a combined capacity of up to 14 tonnes per hour.  The heat produced during the incineration process is converted to electrical energy by generating steam in high-pressure boilers and expanding the steam through a steam turbine.  When operating at full load, the plant will typically generate around 8 MW of electricity and, after satisfying its own power needs, exports approximately 7.1 MW of electricity to the grid. \n\nThe installation provides a sustainable method of waste disposal and recovery, predominantly for the area within the administrative boundary of Wolverhampton Metropolitan Borough Council, with smaller quantities of wastes accepted, where capacity and demand exists, from other local authorities within the general vicinity of the plant.\n\nThe process includes waste reception and storage, combustion, waste heat boilers, abatement of flue gases and the onsite storage of residues produced, namely IBA and APCr.\n\nThe plant is operated in accordance with its Environmental Management System which is designed to meet the requirements of ISO14001:2004.  ",null,null,null,null,null,null,null,null,null,"Include summary of plant design, design capacity, no. of combustion lines, electrical and heat capacity and any other general information that descibes the facility, its location and purpose "]
[]
[]
[]
[]
[]
[]
[]
[]
[]
[]
[]
[]
[]
[]
["Summary of Operational Processes and Procedures"]
[]
["The principle components of the process comprise the following:\n\nWaste Acceptance and Reception: All waste is delivered directly into the fuel storage building and unloaded into the storage bunkers. When required, the waste is discharged onto the feedstock feed system, which delivers the waste into the furnaces via feed hoppers. All waste is accepted in accordance to the sites waste acceptance procedures.\n\nCombustion: The feed ram ensures that material falls into the moving grate within the furnace in a controlled manner.  The moving grate ensures the waste is agitated as it progresses down the furnace to the ash discharge.  Primary air is introduced beneath the grate causing the waste to go through a series of drying and burning areas.  Secondary air is introduced from above the grate for combustion control.  Auxiliary oil fired burners are located in the combustion chamber for start up and temperature control.  The produced gases are resident in the combustion chamber at the 850°C for at least 2seconds before transfer to the boiler , economiser and abatement plant. \n\nElectricity Generation: Each furnace is equipped with a 2-pass water tube boiler raising steam at 45 bar and 355°C. The steam then passes to a Steam Turbine and Generator, which exports electricity to the grid.\n\nFlue-Gas Cleaning: Flue gas cleaning and pollution control consists of urea injection for De-NOx, semi-dry scrubbing using milk of lime spray for acid gas neutralisation and activated carbon powder injection for absorption and removal of heavy metals, dioxins, VOCs and other harmful substances.  Bag filters remove particulates prior to emission to atmosphere via a single 76m high stack.\n\nProcess effluent is treated onsite in the effluent treatment plant and recycled through the process. Any surplus is discharged to foul sewer. \n\nThe Plant is regulated under the terms of a Permit issued by the Environment Agency (reference HP3349QK) which contains conditions to ensure that the requirements of the Waste Incineration Directive are incorporated and will be met. \nNorth Midlands Operations Ltd operates all of its sites under an Integrated Management System certified to ISO 14001:2015 (environmental management), ISO 9001:2015 (quality management), and ISO 45001:2018 (health and safety management).  \nIn terms of plant operation, the incineration processes have been designed against the background of a detailed assessment of the prevailing environmental conditions at the site location, and are based upon the Best Available Technology (BAT) as detailed both in the original Authorisation application and the application for the Permit issued under the Environmental Permitting (England and Wales) Regulations (As Amended).  These include, but are not limited to, the following:\n• Well proven process plant developed specifically for incineration of municipal solid wastes\n• Efficient, comprehensive process control and monitoring systems to ensure optimum conditions for complete combustion of the wastes and to minimise emissions from the processes\n• Operations confined within buildings under slight negative pressure in order to contain and minimise emissions such as dust and odour\n• Qualified and experienced operating and maintenance personnel to implement procedures to ensure that the required high standards are maintained. Operating and Maintenance Procedures are established according to an internationally recognised system of quality assurance\n• Multi-stage high efficiency flue gas cleaning systems comprising deNOx Selective Non-Catalytic Reduction (SNCR) for the removal of oxides of nitrogen, activated carbon and lime semi-dry acid gas scrubbing for controlling acid gas, dioxins/furans and mercury emissions\n• Final stage flue gas abatement for particulate materials using fabric filtration\n• Residues from the combustion process and from the flue gas cleaning system disposed of by approved means, maximising recycling wherever possible\n• Waste water from the process is neutralised and recycled as far as is practicable to minimise the quantities released to sewers\n• Provision of bunds or double skinned vessels for storage of fuel and chemicals in order to prevent accidental and inappropriate discharge to the public sewers and watercourse. \n• The site complies with the new Waste Incineration BAT Conclusions, which came into effect on 03.12.2023.",null,null,null,null,null,null,null,null,null,"Include summary of key processes and procedures such as (but not limited to); waste reception, control rooms, grate, bed and bolier, energy & heat  generation, cooling systems, residue management, emission controls, health and safety systems, maintenance"]

{"sheet":"Operational Data","index":3,"n_rows":66,"n_cols":10,"rows_kept":66,"cut":false,"hidden":false,"merged":[[5,9,7,9],[53,0,57,0],[33,1,38,1],[3,1,3,2],[7,1,19,1],[23,1,26,1],[28,1,29,1],[9,9,20,9],[21,9,25,9]]}
[{"$f":"+'Cover Page'!$B$29","v":"Annual Performance Report 2023"},null,null,null,{"$f":"+'Cover Page'!$B$33","v":"Wolverhampton Energy from Waste Facility "}]
[]
["Operational Data"]
["Plant Size",118000,null,"tonnes pa",null,"MWth",8,"MWe",null,"Notes:"]
["No. of combustion lines",2,null,"No. of Turbines:",null,1,null,null,null,"* - RDF to include SRF "]
[null,null,null,null,null,null,null,null,null,"** - Combusted tonnage = tonnes delivered in period + (tonnes in bunker at start of period – tonnes in bunker at end of period), or equivalent calculation depending on plant type"]
["Waste types received","Unit","Q1","Q2","Q3","Q4","Year Total","%"]
["Household / Local Authority","tonnes",16910,17453,16706,16207,{"$f":"SUM(C8:F8)","v":67276},{"$f":"IF(G8>0,G8/$G$18,\"-\")","v":0.68943042774282137}]
["Commercial & Industrial ",null,9326,11075,7899,2006,{"$f":"SUM(C9:F9)","v":30306},0.31056957225717857,null,"*** - CHP plants only"]
["Hazardous ",null,null,null,null,null,0,"-",null,"**** Availability Definition: 'the availability of a line is to be calculated by the number of hours the line reported Continuously Monitored emission levels to the Regulator through the calendar year divided by the total number of hours in that year. \n\nThe overall plant availability is calculated as the Mean of all lines in the plant. For clarity this includes periods of abnormal operation.'  \n\nRationale: The primary function of an Energy from Waste facility is the disposal of waste. It follows therefore that the availability of a plant is determined by the period of time a facility spends undertaking this activity."]
["Clinical",null,null,null,null,null,0,"-"]
["Waste wood (biomass) ",null,null,null,null,null,0,"-"]
["Refuse Derived Fuel * - H'hold/LA",null,null,null,null,null,{"$f":"SUM(C13:F13)","v":0},"-"]
["Refuse Derived Fuel *  - C&I",null,null,null,null,null,0,"-"]
["Other [Please specify]",null,null,null,null,null,0,"-"]
["Other [Please specify]",null,null,null,null,null,0,"-"]
["Other [Please specify]",null,null,null,null,null,0,"-"]
["Total waste received",null,{"$f":"SUM(C8:C17)","v":26236},{"$f":"SUM(D8:D17)","v":28528},{"$f":"SUM(E8:E17)","v":24605},{"$f":"SUM(F8:F17)","v":18213},97582]
["Rejected Waste ",null,null,null,null,null,{"$f":"SUM(C19:F19)","v":0},{"$f":"IF(G19>0,G19/$G$18,\"-\")","v":"-"}]
["Unprocessed waste transferred out",null,null,null,null,null,{"$f":"SUM(C20:F20)","v":0},{"$f":"IF(G20>0,G20/$G$18,\"-\")","v":"-"}]
["Total waste combusted **",null,26455,28649,25196,17739,{"$f":"SUM(C21:F21)","v":98039}]
[null,null,null,null,null,null,null,null,null,"Password for protected cells\nA password has been set to prevent accidental  editing of cells with formulae. \nIf you still need to make an edit for some reason then the password = 1234"]
["Energy Usage / Export","Unit","Q1","Q2","Q3","Q4","Year Total","KWh/te"]
["Power Generated","MWh",11992,11772,9176,2537,{"$f":"SUM(C24:F24)","v":35477},{"$f":"IF(G24>0,G24*1000/$G$21,\"-\")","v":361.86619610563145}]
["Power Exported",null,9775,9532,7045,1893,{"$f":"SUM(C25:F25)","v":28245},{"$f":"IF(G25>0,G25*1000/$G$21,\"-\")","v":288.09963381919442}]
["Power Used on site",null,2217,2241,2131,644,{"$f":"SUM(C26:F26)","v":7233},{"$f":"IF(G26>0,G26*1000/$G$21,\"-\")","v":73.776762308877082}]
["Power Imported",null,35.700000000000003,0,0,0,35.700000000000003,{"$f":"IF(G27>0,G27*1000/$G$21,\"-\")","v":0.36414080110976244}]
["Parasitic Load","%",{"$f":"IF(C24>0,1-C25/(C24+C27),\"-\")","v":0.18729266609576234},{"$f":"IF(D24>0,1-D25/(D24+D27),\"-\")","v":0.1902820251444105},{"$f":"IF(E24>0,1-E25/(E24+E27),\"-\")","v":0.23223626852659107},{"$f":"IF(F24>0,1-F25/(F24+F27),\"-\")","v":0.25384312179739854},{"$f":"IF(G24>0,1-G25/(G24+G27),\"-\")","v":0.20465073058370664}]
["Thermal Energy Produced ***","MWh",null,null,null,null,{"$f":"SUM(C29:F29)","v":0},{"$f":"IF(G29>0,G29*1000/$G$21,\"-\")","v":"-"}]
["Thermal Energy Exported ***",null,null,null,null,null,0,{"$f":"IF(G30>0,G30*1000/$G$21,\"-\")","v":"-"}]
["R1 value (if applicable)","R1"]
[]
["Waste Disposal & Recovery","Unit","Q1","Q2","Q3","Q4","Year Total","% inputs"]
["APC Residues - produced","tonnes",792,801,588,519,{"$f":"SUM(C34:F34)","v":2700},{"$f":"IF(G34>0,G34/$G$21,\"-\")","v":2.7540060588133294E-2}]
["IBA - produced",null,4162,4821,4292,3129,16404,{"$f":"IF(G35>0,G35/$G$21,\"-\")","v":0.16732116810656983}]
["Metals recycling",null,375,354,345,181,{"$f":"SUM(C36:F36)","v":1255},1.2801028162261956E-2]
["Other",null,0,0,0,0,{"$f":"SUM(C37:F37)","v":0},"-"]
["Other",null,0,0,0,0,0,"-"]
["Other",null,0,0,0,0,0,"-"]
[]
["Raw Material Usage","Unit","Q1","Q2","Q3","Q4","Year Total","kg or Ltr /te"]
["Mains Water","ltrs",27588,23690,26066,16908,{"$f":"SUM(C42:F42)","v":94252},{"$f":"IF(G42>0,G42/$G$21,\"-\")","v":0.96137251501953302}]
["Other Water","ltrs",null,null,null,null,0,{"$f":"IF(G43>0,G43/$G$21,\"-\")","v":"-"}]
["Ammonia","kgs",null,null,null,null,0,"-"]
["Urea","kgs",46000,67000,57000,24000,{"$f":"SUM(C45:F45)","v":194000},1.9788043533695774]
["Activated Carbon","kgs",7000,5000,3000,9000,24000,0.24480053856118483]
["Lime / hydrated lime","kgs",227000,229000,172000,116000,744000,7.58881669539673]
["Fuel oil","ltrs",22040,25690,26057,43950,117737,1.2009200420240924]
["Gas","cuf",null,null,null,null,0]
["HCl","ltrs",3850,4694,7078,6623,22245,0.22689949917889821]
["Caustic Soda","ltrs",3416,4092,6247,6954,20709,0.21123226471098236]
[]
["Summary ","Line/Unit","Q1","Q2","Q3","Q4","Year Total",null,"Hrs in year "]
["Availability of waste combustion by line, hrs ****",1,2036,2034,2190.25,1384.6,{"$f":"SUM(C54:F54)","v":7644.85},{"$f":"+G54/$I$54","v":0.87269977168949775},8760]
[null,2,1769.75,2009.25,1620.5,1275.8,6675.3,{"$f":"+G55/$I$54","v":0.76202054794520546}]
[null,3,null,null,null,null,0,0]
[null,4,null,null,null,null,0,0]
[null,5,null,null,null,null,{"$f":"SUM(C58:F58)","v":0},0]
["Overall Availability, mean avg. of all lines, hrs",null,{"$f":"AVERAGE(C54:C55)","v":1902.875},{"$f":"AVERAGE(D54:D55)","v":2021.625},1905.375,1330.1999999999998,{"$f":"AVERAGE(G54:G58)","v":2864.03},0.32694406392694064]
["Hours of turbine operations, hrs",1,2047.5,2129.5,2145.9,729,7051.9,0.80501141552511413]
["Hours of turbine operations, hrs",2,null,null,null,null,0,0]
["Hours of heat / steam export",null,null,null,null,null,0,{"$f":"IF(B62>0,G61/I54,\"n/a\")","v":"n/a"}]
["Net Calorific Value of waste","MJ/kg",8.3490000000000002,8.3930000000000007,8.3580000000000005,6.4589999999999996]
["Abnormal Events","qty.",0,0,1,0,1,{"$f":"IF(G64>0,\"yes\",\"no\")","v":"yes"}]
["Abnormal operation","hours",null,null,0.5,null,0.5,{"$f":"+(G65)/I54","v":5.7077625570776254E-5}]
["Permit Breaches","qty.",7,4,5,4,20,{"$f":"IF(G66>0,\"yes\",\"no\")","v":"yes"}]

{"sheet":"Operational Summary","index":4,"n_rows":31,"n_cols":11,"rows_kept":31,"cut":false,"hidden":false,"merged":[[4,0,26,8],[30,0,51,8],[4,10,13,13],[30,10,39,13]]}
[{"$f":"+'Cover Page'!$B$29","v":"Annual Performance Report 2023"},null,null,null,{"$f":"+'Cover Page'!$B$33","v":"Wolverhampton Energy from Waste Facility "}]
[]
["Summary of Plant Operations and Maintenance during the reporting year",null,null,null,null,null,null,null,null,null,"Notes:"]
[]
["• In 2023 tube leaks have been the main reason of boiler unavailability in Wolverhampton followed by common parts issues. The boiler 1 availability for the year was 87.3% & boiler 2 76.21%.\nThe turbine unavailability has been mainly impacted by boilers but performance was poor. The overall turbine availability for the year was 85%.\n• Extensive scheduled maintenance was undertaken at the plants annual planned shutdown period:\no Boilers thorough inspections performed. Complete replacement superheater panels in boiler 2 and 2 panels in boiler 1.\n Additionally boiler 1 had half a waterwall replaced.\nBoiler 1 had the top section bends replaced.\no Soot blowers and air hammers inspected and maintained. \no Combustion system thoroughly inspected and worn parts replaced. \no Auxiliary burners inspected and overhauled. \no Hydraulic packs serviced.\no Both boiler pressure safety valves, as well as common vessels and main valves inspected / serviced. \no Bag house filters and scrubbers cleaned, inspected and repaired where needed. The program of bags replacement continued.\no Ducting and expansion joints inspections and repairs made. With replacement of the stack expansion joints on both streams\no Fly ash and bottom ash conveyors inspected and serviced. \no Lime, urea and activated carbon systems cleaned and inspected. With a major upgrade of the carbon and urea system to achieve Bref.\no Main fans and pumps inspected and serviced. The main electrical motors have been tested. FD1 motor replaced and ID2 motor replaced\no Main instrumentation calibrated. \no Turbine, generator and gearbox stripped and removed from site for major overhaul and re-blade.\no Generator electrical test performed. \no Main electrical systems inspected and tested.\n   Turbine with be rebuilt onsite, commissioned and return to service 27th February 2023",null,null,null,null,null,null,null,null,null,"Include summary of key operational and/or mainteanance activity undertaken in the year, such as any major component upgrades and/or replacements "]
[]
[]
[]
[]
[]
[]
[]
[]
[]
[]
[]
[]
[]
[]
[]
[]
[]
[]
[]
[]
[]
[]
[]
["Summary of Residue Handling for the reporting year"]
[]
["add text here, \n2 main sources of residue arise from the operation of the plant:\n- Incinerator Bottom ash (IBA) (which also includes ferrous metals discharged within the ash)\n- Air Pollution Control residues (APCr)\n\nResidues from the flue gas treatment process (APCr) are discharged into an enclosed system which feed into double-skinned heavy-duty bags prior to removal from site for controlled treatment and disposal.  These residues account for under 5% of the total weight of all refuse processed by the facility.\nThe residues were sent - for most of 2023 - to Castle Waste Services Ltd's Ilkeston Waste Treatment and Transfer Facility (AP3337SJ). \nIn mid November 2023, the residues were redirected to Augean South Ltd's Kings Cliffe East Northants Resource Management Facility (YP3138XB).\nThese residues are ultimately disposed of in specialist landfill.\n\nIncinerator Bottom Ash (IBA) is discharged from the lower end of each grate into a water filled ash discharger, where it is quenched and then ejected onto a conveyor system. Ferrous metals are removed via magnetic separation.  \nThe resulting materials are stored in the storage bunkers prior to removal from site for recycling - the storage capacity for bottom ash residues and separated ferrous metals is sufficient to ensure 4 days storage. \nIBA is transferred offsite for further treatment and processing sites regularly between Mondays and Fridays and are scheduled to ensure sufficient storage capacity is maintained at all times. Collections are available at weekends if operational conditions require this facility.\nBottom ash from North Midlands Operations Ltd is currently being sent to Johnsons Aggregates & Recycling Ltd Midlands Urban Mine in Ilkeston (MP3430AM) and Bunny site (DP3493CT).\nAt these sites, additional ferrous and trace metals is removed, and the remaining material being further processed into usable aggregate in a zero to landfill process.",null,null,null,null,null,null,null,null,null,"Include in here a summary of residue handling regimes and destinations "]

{"sheet":"Perf. Form 1","index":5,"n_rows":54,"n_cols":10,"rows_kept":54,"cut":false,"hidden":false,"merged":[[47,0,47,1],[49,0,49,9],[50,0,51,9],[38,0,38,9],[39,0,40,9],[43,0,43,1],[43,2,43,9],[45,0,45,1],[46,0,46,1],[36,0,36,3],[36,4,36,5],[36,7,36,8],[37,0,37,3],[37,4,37,5],[37,7,37,8],[34,0,34,3],[34,4,34,5],[34,7,34,8],[35,0,35,3],[35,4,35,5],[35,7,35,8],[31,0,31,3],[31,7,31,8],[32,0,32,3],[32,4,32,5],[32,7,32,8],[33,0,33,3],[33,4,33,5],[33,7,33,8],[23,0,23,3],[23,4,23,5],[23,6,23,7],[23,8,23,9],[25,0,25,9],[26,0,28,9],[21,0,21,1],[21,2,21,3],[21,4,21,5],[21,6,21,7],[21,8,21,9],[22,0,22,3],[22,4,22,5],[22,6,22,7],[22,8,22,9],[19,0,19,1],[19,2,19,3],[19,4,19,5],[19,6,19,7],[19,8,19,9],[20,0,20,1],[20,2,20,3],[20,4,20,5],[20,6,20,7],[20,8,20,9],[17,0,17,1],[17,2,17,3],[17,4,17,5],[17,6,17,7],[17,8,17,9],[18,0,18,1],[18,2,18,3],[18,4,18,5],[18,6,18,7],[18,8,18,9],[15,0,15,1],[15,2,15,3],[15,4,15,5],[15,6,15,7],[15,8,15,9],[16,0,16,9],[13,0,13,1],[13,2,13,3],[13,4,13,5],[13,6,13,7],[13,8,13,9],[14,0,14,3],[14,4,14,5],[14,6,14,7],[14,8,14,9],[11,0,11,1],[11,2,11,3],[11,4,11,5],[11,6,11,7],[11,8,11,9],[12,0,12,1],[12,2,12,3],[12,4,12,5],[12,6,12,7],[12,8,12,9],[9,0,9,9],[10,0,10,1],[10,2,10,3],[10,4,10,5],[10,6,10,7],[10,8,10,9],[2,0,2,4],[2,6,2,8],[3,1,3,4],[5,3,5,4],[5,6,5,7],[8,0,8,1],[8,2,8,3],[8,4,8,5],[8,6,8,7],[8,8,8,9]]}
[{"$f":"+'Cover Page'!C39","v":2023}," Annual Reporting Performance Form 1"]
[]
[{"$f":"+'Cover Page'!B31","v":"Permit EPR/HP3349QK"},null,null,null,null,"Operator: ",{"$f":"+'Cover Page'!B37","v":"North Midlands Operations Ltd"}]
["Facility:",{"$f":"+'Cover Page'!B33:I33","v":"Wolverhampton Energy from Waste Facility "},null,null,null,"Form:","Performance 1"]
[]
["Reporting  Period from: ",null,null,"1st January 2023",null,"to:","31st December 2023"]
[]
[{"$f":"+A1","v":2023},"Annual Reporting of Waste Disposal and Recovery"]
["Waste Description",null,"Disposal Route(s)",null,"Disposal Tonnes",null,"Recovery Tonnes",null,"% / tonne of waste incinerated"]
["1) Hazardous Wastes"]
["APC Residues",null,"D13",null,2700,null,null,null,{"$f":"IF((E11+G11)>0,(E11+G11)/'Operational Data'!$G$21, \"-\")","v":2.7540060588133294E-2}]
["IBA",null,null,null,null,null,null,null,{"$f":"IF((E12+G12)>0,(E12+G12)/'Operational Data'!$G$21, \"-\")","v":"-"}]
[null,null,null,null,null,null,null,null,{"$f":"IF((E13+G13)>0,(E13+G13)/'Operational Data'!$G$21, \"-\")","v":"-"}]
[null,null,null,null,null,null,null,null,{"$f":"IF((E14+G14)>0,(E14+G14)/'Operational Data'!$G$21, \"-\")","v":"-"}]
["Total Hazardous Waste",null,null,null,{"$f":"SUM(E11:F14)","v":2700},null,{"$f":"SUM(G11:H14)","v":0},null,{"$f":"IF((E15+G15)>0,(E15+G15)/'Operational Data'!$G$21, \"-\")","v":2.7540060588133294E-2}]
[]
["2) Non-Hazardous Wastes"]
["IBA",null,"R04",null,null,null,16404,null,{"$f":"IF((E18+G18)>0,(E18+G18)/'Operational Data'!$G$21, \"-\")","v":0.16732116810656983}]
["Ferrous Metal",null,"R04",null,null,null,1255,null,{"$f":"IF((E19+G19)>0,(E19+G19)/'Operational Data'!$G$21, \"-\")","v":1.2801028162261956E-2}]
[null,null,null,null,null,null,null,null,{"$f":"IF((E20+G20)>0,(E20+G20)/'Operational Data'!$G$21, \"-\")","v":"-"}]
[null,null,null,null,null,null,null,null,{"$f":"IF((E21+G21)>0,(E21+G21)/'Operational Data'!$G$21, \"-\")","v":"-"}]
[null,null,null,null,null,null,null,null,{"$f":"IF((E22+G22)>0,(E22+G22)/'Operational Data'!$G$21, \"-\")","v":"-"}]
["Total Non-Hazardous Waste",null,null,null,{"$f":"SUM(E18:F22)","v":0},null,{"$f":"SUM(G18:H22)","v":17659},null,{"$f":"IF((E23+G23)>0,(E23+G23)/'Operational Data'!$G$21, \"-\")","v":0.1801221962688318}]
["TOTAL WASTE",null,null,null,{"$f":"+E23+E15","v":2700},null,{"$f":"+G23+G15","v":17659},null,{"$f":"IF((E24+G24)>0,(E24+G24)/'Operational Data'!$G$21, \"-\")","v":0.20766225685696507}]
[]
["Operator’s comments :"]
[]
[]
[]
[]
[{"$f":"+A1","v":2023},"Annual Reporting of Water and Other Raw Material Usage"]
["Raw Material",null,null,null,"Usage",null,"Unit","Specific Useage",null,"Unit"]
["Mains Water",null,null,null,{"$f":"+'Operational Data'!G42","v":94252},null,"m3",{"$f":"IF(E33>0,E33/'Operational Data'!$G$21,\"-\")","v":0.96137251501953302},null,"m3/te"]
["Total Water",null,null,null,{"$f":"+'Operational Data'!G43+'Operational Data'!G42","v":94252},null,"m3",{"$f":"IF(E34>0,E34/'Operational Data'!$G$21,\"-\")","v":0.96137251501953302},null,"m3/te"]
["Urea / Ammonia",null,null,null,{"$f":"+'Operational Data'!G44","v":0},null,"kg",{"$f":"IF(E35>0,E35/'Operational Data'!$G$21,\"-\")","v":"-"},null,"kg/te"]
["Activated Carbon",null,null,null,{"$f":"+'Operational Data'!G46","v":24000},null,"kg",{"$f":"IF(E36>0,E36/'Operational Data'!$G$21,\"-\")","v":0.24480053856118483},null,"kg/te"]
["Lime / hydrated lime / Sodium Bicarb.",null,null,null,{"$f":"+'Operational Data'!G47","v":744000},null,"kg",{"$f":"IF(E37>0,E37/'Operational Data'!$G$21,\"-\")","v":7.58881669539673},null,"kg/te"]
[]
["Operator’s comments :"]
[]
[]
[]
[{"$f":"+A31","v":2023},"Annual Reporting of other performance indicators "]
["Parameter",null,"Results by Line"]
[null,null,"A1","A2","A3","A4","A5",null,"Turbine 1","Turbine 2"]
["Operating hours for the year, hours",null,7971,7875]
["Number of periods of abnormal operation, qty.",null,null,1]
["Cumulative hours of abnormal operation for this year, hours",null,null,0.5]
[]
["Operator’s comments :"]
[]
[]
[]
["Signed: ",null,null,null,null,null,"Date:"]

{"sheet":"Energy Form 1","index":6,"n_rows":29,"n_cols":7,"rows_kept":29,"cut":false,"hidden":false,"merged":[[15,0,15,2],[15,3,15,4],[15,6,15,8],[17,0,17,8],[18,0,24,8],[13,0,13,2],[13,3,13,4],[13,6,13,8],[14,0,14,2],[14,3,14,4],[14,6,14,8],[11,0,11,2],[11,3,11,4],[11,6,11,8],[12,0,12,2],[12,3,12,4],[12,6,12,8],[9,0,9,2],[9,3,9,4],[9,6,9,8],[10,0,10,2],[10,3,10,4],[10,6,10,8],[2,6,2,8],[4,1,4,4],[6,3,6,4],[6,6,6,7],[8,0,8,2],[8,3,8,4],[8,6,8,8]]}
[{"$f":"+'Cover Page'!C39","v":2023}," Annual Reporting of Energy Usage/Export"]
[]
[{"$f":"+'Cover Page'!B31","v":"Permit EPR/HP3349QK"},null,null,null,null,"Operator: ",{"$f":"+'Cover Page'!B37","v":"North Midlands Operations Ltd"}]
[]
["Facility:",{"$f":"+'Cover Page'!B33:I33","v":"Wolverhampton Energy from Waste Facility "},null,null,null,"Form:","Energy 1"]
[]
["Reporting  Period from: ",null,null,{"$f":"+'Perf. Form 1'!D6:E6","v":"1st January 2023"},null,"to:",{"$f":"+'Perf. Form 1'!G6:H6","v":"31st December 2023"}]
[]
["Energy Source",null,null,"Energy Usage",null,"Unit","Specific Useage (KWh/tonne incinerated"]
["Electricity Produced",null,null,{"$f":"+'Operational Data'!G24","v":35477},null,"MWh",{"$f":"+'Operational Data'!H24","v":361.86619610563145}]
["Electricity Imported   ",null,null,{"$f":"+'Operational Data'!G27","v":35.700000000000003},null,"MWh",{"$f":"+'Operational Data'!H27","v":0.36414080110976244}]
["Electricity Exported",null,null,{"$f":"+'Operational Data'!G25","v":28245},null,"MWh",{"$f":"+'Operational Data'!H25","v":288.09963381919442}]
["Gas Oil",null,null,994.79,null,"tonnes"]
["Steam/hot water exported",null,null,{"$f":"+'Operational Data'!G30","v":0},null,"GWh",{"$f":"+'Operational Data'!H30","v":"-"}]
[]
[]
[]
["Operator’s comments :"]
["Recently the City of Wolverhampton Council has assumed responsibility for contracting with the site's energy supplier. However, since this - early October - there have been signficant issues accessing the usage data from the remote metering. The Wolverhampton EfW Plant Manager has made extensive efforts to gain access to this data from CWC or Stark Energy without success. It is intended that NMOL now fit local on-site metering to circumnavigate this issue."]
[]
[]
[]
[]
[]
[]
[]
[]
[]
["Signed: ",null,null,null,null,null,"Date:"]

{"sheet":"Permit Compliance","index":7,"n_rows":50,"n_cols":12,"rows_kept":50,"cut":false,"hidden":false,"merged":[[28,7,28,9],[29,7,29,9],[30,7,30,9],[31,7,31,9],[32,7,32,9],[33,7,33,9],[30,4,30,6],[31,4,31,6],[40,7,40,9],[34,7,34,9],[35,7,35,9],[36,7,36,9],[37,7,37,9],[38,7,38,9],[39,7,39,9],[32,1,32,3],[33,1,33,3],[34,1,34,3],[35,1,35,3],[38,4,38,6],[39,4,39,6],[40,4,40,6],[21,7,21,9],[22,7,22,9],[23,7,23,9],[24,7,24,9],[25,7,25,9],[26,7,26,9],[27,7,27,9],[32,4,32,6],[33,4,33,6],[34,4,34,6],[35,4,35,6],[36,4,36,6],[37,4,37,6],[26,4,26,6],[27,4,27,6],[28,4,28,6],[29,4,29,6],[49,4,49,8],[21,1,21,3],[22,1,22,3],[23,1,23,3],[24,1,24,3],[25,1,25,3],[26,1,26,3],[27,1,27,3],[28,1,28,3],[29,1,29,3],[47,1,47,3],[47,4,47,6],[47,7,47,9],[48,1,48,3],[48,4,48,6],[48,7,48,9],[45,1,45,3],[45,4,45,6],[45,7,45,9],[46,1,46,3],[46,4,46,6],[46,7,46,9],[42,0,42,10],[43,1,43,3],[43,4,43,6],[43,7,43,9],[44,1,44,3],[44,4,44,6],[44,7,44,9],[18,0,18,10],[19,1,19,3],[19,4,19,6],[19,7,19,9],[20,1,20,3],[20,4,20,6],[20,7,20,9],[36,1,36,3],[37,1,37,3],[38,1,38,3],[39,1,39,3],[40,1,40,3],[21,4,21,6],[22,4,22,6],[23,4,23,6],[24,4,24,6],[25,4,25,6],[30,1,30,3],[31,1,31,3],[7,0,7,1],[7,2,7,8],[8,0,8,1],[8,2,8,4],[8,5,8,8],[15,0,15,1],[15,2,15,4],[15,5,15,8],[16,0,16,1],[16,2,16,4],[16,5,16,8],[13,0,13,1],[13,2,13,4],[13,5,13,8],[14,0,14,1],[14,2,14,4],[14,5,14,8],[8,11,16,11],[9,0,9,1],[9,2,9,4],[9,5,9,8],[10,0,10,1],[10,2,10,4],[10,5,10,8],[11,0,11,1],[11,2,11,4],[11,5,11,8],[12,0,12,1],[12,2,12,4],[12,5,12,8]]}
[{"$f":"+'[1]Cover Page'!$B$29","v":"Annual Performance Report 2023"}]
[]
["Summary of Permit Compliance",null,null,null,null,null,{"$f":"+'Cover Page'!$B$33","v":"Wolverhampton Energy from Waste Facility "}]
[]
["Compliance with permit limits for continuously monitored pollutants"]
[]
["The plant met its emission limits as shown in the table below:"]
["Substance",null,"Percentage time compliant during operationNote 1",null,null,null,null,null,null,null,null,"Notes:"]
[null,null,"Half-hourly limit",null,null,"Daily limit",null,null,null,null,null,"Note 1: Please report to 2 decimal places, i.e. xx.xx%\n\nNote 2: Please provide a brief summary of each notification or non-compliance in the table (rather than just referring to notifications that were sent to the Regulator), including stating the value of measured result for any ELV exceedances.   \n\n"]
["Particulates",null,0.99990000000000001,null,null,1]
["Oxides of nitrogen",null,0.99990000000000001,null,null,1]
["Sulphur dioxide",null,0.99990000000000001,null,null,1]
["Carbon monoxide",null,1,null,null,0.99450000000000005]
["Total organic carbon",null,0.99970000000000003,null,null,1]
["Hydrogen chloride",null,0.99980000000000002,null,null,0.99450000000000005]
["Hydrogen fluoride",null,1,null,null,0.99839999999999995]
["Average",null,{"$f":"AVERAGE(C10:E16)","v":0.99988571428571427},null,null,{"$f":"AVERAGE(F10:I16)","v":0.99820000000000009}]
[]
["Summary of any notifications or non-compliances under the permit"]
["Date","Summary of notification or non-compliance [including Line/Reference]Note 2",null,null,"Reason ",null,null,"Measures taken to prevent reoccurrence"]
["2023-01-16","A1 VOC HH Exceedance (35.65)",null,null,"Electrical fault on feed table.",null,null,"Fixed table. Reviewed maintenance."]
["2023-02-14","A1 HCl HH Exceedance (68.48)",null,null,"Poor waste quality.",null,null,"Mix waste more thoroughly."]
["2023-03-10","A1 VOC HH Exceedance (32.42)",null,null,"Poor waste quality.",null,null,"Mix waste more thoroughly."]
["23/03/2023","A1 HCl Daily Exceedance (11.63)",null,null,"Lime system issue. ",null,null,"Replaced turbine with spare."]
["29/03/2023","A1 HCl Daily Exceedance (10.32)",null,null,"Bredell pump issue.",null,null,"Unblocked. Maintained."]
["31/03/2023","A1 CO Daily Exceedance (106.16)",null,null,"Large steel bin blockage.",null,null,"Communicated with client regarding feedstock expectations."]
["31/03/2023","A1 VOC HH Exceedance (189.6)",null,null,"As above; ash discharger blocked.",null,null,"Communicated with client regarding feedstock expectations."]
["17/04/2023","A2 SO2 HH Exceedance (201.38)",null,null,"Poor waste quality.",null,null,"Mix waste more thoroughly."]
["2023-04-05","A1 VOC HH Exceedance (21.15)",null,null,"Extremely wet waste.",null,null,"Leave wet waste to dry and mix better."]
["2023-05-06","A2 SO2 HH Exceedance (211.01)",null,null,"High plastic content of waste.",null,null,"Mix waste more thoroughly."]
["2023-05-26","A2 NOx HH Exceedance (488.77)",null,null,"Fault with urea screw.",null,null,"Replaced."]
["24/07/2023","A2 NOx HH Exceedance (448.44)",null,null,"Blocked urea pipe.",null,null,"Unblocked. Material flow monitor investigated."]
["2023-08-18","A1 PM HH Exceedance (87.57)",null,null,"Baghouse blockage",null,null,"Retraining."]
["2023-08-18","A1 PM HH Exceedance (35.13)",null,null,"Baghouse blockage",null,null,"Retraining."]
["2023-08-23","A2 HCl HH Exceedance (75.54)",null,null,"Atomiser blockage",null,null,"Replaced atomiser."]
["2023-09-08","A2 VOC HH Exceedance (20.40)",null,null,"Poor waste quality.",null,null,"Mix waste more thoroughly."]
["2023-09-22","A2 VOC HH Abnormal Ops (44.18)",null,null,"Burner malfunctioning",null,null,"Repaired burner."]
["2023-10-06","A1 HCl HH Exceedance (67.72)",null,null,"Lime turbine blockage.",null,null,"More frequent cleaning."]
["2023-10-13","A2 CO HH Exceedance (65.06)",null,null,"Burner nozzle blocked.",null,null,"Cleared blockage."]
["2023-10-13","A2 VOC HH Exceedance (33.65)",null,null,"Burner fault.",null,null,"Maintained."]
["2023-10-19","A2 CO Daily Exceedance (72.08)",null,null,"Burner fault.",null,null,"Full overhaul at outage."]
[]
["Summary of any complaints received and actions to taken to resolve them."]
["Date","Summary of complaint [including Line/Reference]",null,null,"Reason *",null,null,"Communicated with client regarding feedstock expectations."]
[]
[]
[]
[]
[]
[null,null,null,null,"* including whether substantiated by the operator or the EA"]

{"sheet":"Improvements","index":8,"n_rows":39,"n_cols":5,"rows_kept":39,"cut":false,"hidden":false,"merged":[[37,0,37,8],[38,0,47,8],[4,0,4,8],[5,0,13,8],[15,0,15,8],[16,0,24,8],[26,0,26,8],[27,0,35,8]]}
[{"$f":"+'Cover Page'!$B$29","v":"Annual Performance Report 2023"},null,null,null,{"$f":"+'Cover Page'!$B$33","v":"Wolverhampton Energy from Waste Facility "}]
[]
["Summary of Plant Improvements"]
[]
["Summary of any efficiency improvements that have been completed within the year."]
["• LED lamp replacement is an ongoing project with additional upgrade of some been changed to have battery backup.\n• The enhanced cleaning regime on the ACC is a consolidated practice (now 3 times/year). Additionally, we have carried out a wet clean to increase performance. During the outage, the blades of the ACC fans are cleaned and the blade tip angles checked and adjusted.\n• The turbine has been sent away during October outage, although not back till end of February 2024 we are hoping for significant performance improvements with output."]
[]
[]
[]
[]
[]
[]
[]
[]
[]
["Summary of any permit improvement conditions that have been completed within the year and the resulting environmental benefits."]
["The site has completed IC2-IC4 of the EPR/HP3349QK/V002\n\nIC2: The site submitted a report on whether waste feed to the plant can be proven to have a low and stable mercury content. We are now able to consistently achieve the new (lower) Hg ELV.\n\nIC3: The site submitted a report on whether dioxin emissions to air are stable.  We are now able to consistently achieve the new (lower) D&F ELV.\n\nIC4: We submitted a report calculating the Gross Electrical Efficiency of the plant."]
[]
[]
[]
[]
[]
[]
[]
[]
[]
["Summary of any changes to the plant or operating techniques which required a variation to the permit and a summary of the resulting environmental impact."]
["N/A"]
[]
[]
[]
[]
[]
[]
[]
[]
[]
["Summary of any other improvements made to the plant or planned to be made and a summary of the resulting environmental benefits."]
["• Urea panel upgrades to support of BREF compliance.\n• Carbon panel upgrades and system upgrades to support of BREF compliance.\n• Replaced various amounts of valves to reduce leaks.\n• Continued replacement of existing lighting with LEDs and emergency backups.\n• Replacement of superheater panels to reduce downtime in leaks, reducing fuels costs for startup.\n• Replacement of economizer tube bends on boiler 2, again to reduce downtime in leaks.\n• Scrubber 2 major corrosion causing leaks and air ingress repaired and plated.\n• Reduction in emission set points to support of BREF compliance."]

{"sheet":"Public Liasion","index":9,"n_rows":29,"n_cols":5,"rows_kept":29,"cut":false,"hidden":false,"merged":[[23,0,24,1],[23,2,24,8],[25,0,26,1],[25,2,26,8],[28,0,28,8],[17,0,18,1],[17,2,18,8],[19,0,20,1],[19,2,20,8],[21,0,22,1],[21,2,22,8],[16,0,16,1],[16,2,16,8],[5,0,5,1],[5,2,5,8],[6,0,7,1],[6,2,7,8],[8,0,9,1],[8,2,9,8],[10,0,11,1],[10,2,11,8],[12,0,13,1],[12,2,13,8],[15,0,15,8]]}
[{"$f":"+'Cover Page'!$B$29","v":"Annual Performance Report 2023"},null,null,null,{"$f":"+'Cover Page'!$B$33","v":"Wolverhampton Energy from Waste Facility "}]
[]
["Details of Public & Stakeholder Liasion"]
[]
["Summary of events held during the reporting year."]
["Date",null,"Description"]
["Jan 23-Dec 23",null,"Routine liaison meetings with CWC on health, safety, environmental and operational matters."]
[]
[]
[]
[]
[]
[]
[]
[]
["List of events planned for next year"]
["Date",null,"Description"]
["Jan 24-Dec 24",null,"Continue to hold routine liaison meetings with CWC on health, safety, environmental and operational matters."]
[]
[]
[]
[]
[]
[]
[]
[]
[]
[]
["If you wish to be involved in the public liasion programme, please contact _________________"]

{"sheet":"CO2 N2O","index":10,"n_rows":23,"n_cols":6,"rows_kept":23,"cut":false,"hidden":false,"merged":[[20,2,20,3],[23,1,23,3],[16,2,16,3],[4,0,4,3],[9,0,9,3],[17,0,17,3],[13,0,13,3],[12,0,12,1],[8,2,8,3],[11,2,11,3]]}
[{"$f":"+'Cover Page'!$B$29","v":"Annual Performance Report 2023"},null,{"$f":"+'Cover Page'!$B$33","v":"Wolverhampton Energy from Waste Facility "}]
[]
["Carbon dioxide emissions and biogenic content of waste inputs",null,null,null,null,"Notes:"]
[]
["Carbon dioxide emissions (all types of plant)"]
[null,"Annual mass of carbon dioxide released","tonnes ",{"$f":"98039*0.942","v":92352.737999999998}]
[null,"Annual mass of carbon dioxide released per tonne of waste burned","t CO2 / t waste ",{"$f":"D6/98039","v":0.94199999999999995}]
[null,"Annual mass of carbon dioxide released per MWh of energy exported","t CO2 / MWh export ",{"$f":"D6/28245","v":3.2697021773765269}]
[null,"Description of how annual carbon dioxide mass emission has been calculated. \nSee Note 1","0.942 tCO2/t waste as per Tolvik report 2022",null,null,"Note 1: Where available, data from CO2 CEMS should be used. \nOtherwise, only where no CEMS data is available, a suitable emissions factor should be used based on the tonnage of waste burned e.g.0.942 tCO2/t waste as per Tolvik report 2022, or other justified emissions factor  - refer to embedded Environment Agency guidance note above or updated version for suitable descriptive text."]
["Nitrous oxide emissions (only plants which use ammonia or urea to abate NOx emissions)"]
[null,"Annual mass emissions of nitrous oxide","tonnes N2O",{"$f":"98039*0.0981/1000","v":9.6176259000000002}]
[null,"Description of how annual nitrous oxide mass emission has been calculated\nSee Note 2","0.0981 kgN20/t waste as per 2021 PI data",null,null,"Note 2: Where available, data from N2O CEMS should be used. \nIf no CEMS data is available, from periodic monitoring. Otherwise, a suitable emissions factor should be used based on the tonnage of waste burned e.g. 0.0981 kgN20/t waste as per 2021 Pollution Inventory data for plants with urea-based SNCR - refer to embedded Environment Agency guidance note above or updated version for suitable descriptive text."]
["Total annual carbon dioxide and nitrous oxide emissions. \nSee Note 3. ",null,"tonnes CO2e",{"$f":"D6+(D11*298)","v":95218.790518199996},null,"Note 3: Total annual carbon dioxide and nitrous oxide emissions reported as carbon dioxide equivalent where 1 tonne nitrous oxide is equivalent to 298 tonne carbon dioxide"]
["Biogenic CO2 emissions (See Note 4)",null,null,null,null,"Note 4: Only plants combusting residual municipal waste, refuse derived fuel or solid recovered fuel"]
[null,"Percentage of total carbon dioxide emissions arising from biogenic waste","%",0.54120000000000001]
[null,"No. of measurements undertaken","Number",1]
[null,"Description of how percentage biogenic carbon dioxide emissions have been measured or calculated.\nSee Note 5","Assumed to be the same as the biogenic CO2 fraction of the total CO2 emissions from the plant. ",null,null,"Note 5: Examples include direct measurement via C14 method or BIOMA software - refer to embedded Environment Agency guidance note above or updated version for suitable descriptive text, quoting standards where relevant. \nOtherwise, as an approximation (and in lieu of any more accurate metrics which may be developed in future), the measured or estimated biogenic fraction by net calorific value can be assumed to be the same as the biogenic CO2 fraction of the total CO2 emissions from the plant. "]
["Biogenic fraction of waste feedstock (See Note 4)"]
[null,"Yearly average biogenic percentage of the waste by net calorific value (NCV)","%",0.54120000000000001]
[null,"If sampling undertaken, no. of samples used to ascertain average biogenic % above","Number",1]
[null,"Description of how biogenic percentage (by NCV) has been calculated or estimated. \nSee Note 6","In accordance with Ofgem-approved fuel measurement and sampling plan.",null,null,"Note 6: Where available, data from waste sampling should be used; otherwise, an estimated figure with justification can be used, or a figure assumed on the basis of a national average e.g. 2017 WRAP data for residual waste of 51.8% biogenic energy content - refer to embedded Environment Agency guidance note above or updated version for suitable descriptive text, quoting standards where relevant. "]
[]
[null,"Comments:"]

{"sheet":"Residue Quality ","index":11,"n_rows":36,"n_cols":6,"rows_kept":36,"cut":false,"hidden":false,"merged":[[35,0,40,6],[34,0,34,6],[27,0,28,1],[29,0,29,1],[30,0,30,1],[31,0,31,1],[32,0,32,1],[29,3,29,4],[30,3,30,4],[29,5,29,6],[30,5,30,6],[31,5,31,6],[32,5,32,6],[31,3,31,4],[32,3,32,4],[20,0,21,1],[20,2,21,6],[22,0,23,1],[22,2,23,6],[27,2,28,2],[28,3,28,4],[28,5,28,6],[27,3,27,6],[26,0,26,6],[5,0,6,6],[7,0,8,6],[9,0,10,6],[14,0,15,1],[14,2,15,6],[16,0,17,1],[16,2,17,6],[18,0,19,1],[18,2,19,6],[12,0,12,6],[13,0,13,1],[13,2,13,6]]}
[{"$f":"+'Cover Page'!$B$29","v":"Annual Performance Report 2023"},null,null,null,{"$f":"+'Cover Page'!$B$33","v":"Wolverhampton Energy from Waste Facility "}]
[]
["Residue Quality Monitoring Requirements"]
[]
["Summary of monitoring undertaken and compliance"]
["IBA and APCr are tested in accordance with the site's permit. "]
[]
["IBA is also sampled and analysed in accordance with the ESA protocol."]
[]
[]
[]
[]
["Commentary on any specific events"]
["Date & Event",null,"Description"]
[]
[]
[]
[]
[]
[]
[]
[]
[]
[]
[]
[]
["Residue Quality Monitoring Results"]
["Parameter (unit) ",null,"Limit","Normal Operation "]
[null,null,null,"Bottom ash  ",null,"APC Residues"]
["Loss on Ignition (average %)",null,"<5%",3.64]
["Total Organic Carbon (average %)",null,"<3%",0.94]
["No. of Assessments Undertaken",null,"---",28]
["No. of Hazardous Results",null,"---",0]
[]
["Comments :"]
["No Hazardous reports for this facility laboratory testing were returned in 2023"]

{"sheet":"Water","index":12,"n_rows":32,"n_cols":9,"rows_kept":32,"cut":false,"hidden":false,"merged":[[30,0,30,2],[31,0,31,2],[30,3,30,4],[31,3,31,4],[29,0,29,2],[29,3,29,4],[26,0,26,2],[26,3,26,4],[27,0,27,2],[27,3,27,4],[28,0,28,2],[28,3,28,4],[23,0,23,2],[23,3,23,4],[24,0,24,2],[24,3,24,4],[25,0,25,2],[25,3,25,4],[21,0,21,8],[22,0,22,2],[22,3,22,4],[14,0,15,1],[14,2,15,8],[16,0,17,1],[16,2,17,8],[18,0,19,1],[18,2,19,8],[5,0,6,8],[7,0,8,8],[9,0,10,8],[12,0,12,8],[13,0,13,1],[13,2,13,8]]}
[{"$f":"+'Cover Page'!$B$29","v":"Annual Performance Report 2023"},null,null,null,{"$f":"+'Cover Page'!$B$33","v":"Wolverhampton Energy from Waste Facility "}]
[]
["Emissions to Water"]
[]
["Summary of monitoring undertaken and compliance"]
[]
[]
[]
[]
[]
[]
[]
["Commentary on any specific events"]
["Date & Event",null,"Description"]
[]
[]
[]
[]
[]
[]
[]
["Emissions to Water / Sewer"]
["Parameter",null,null,"Monitoring Frequency",null,"Limit","Target","Max.","Average"]
["pH",null,null,"Annual",null,"6-10","N/A","N/A",8.3000000000000007]
["SS",null,null,"Annual",null,400,"N/A","N/A",65]
["Cd",null,null,"Annual",null,null,"N/A","N/A",3.8000000000000002E-4]
["Cr",null,null,"Annual",null,null,"N/A","N/A",9.7999999999999997E-3]
["Cu",null,null,"Annual",null,null,"N/A","N/A",5.0999999999999997E-2]
["Pb",null,null,"Annual",null,null,"N/A","N/A",1.7999999999999999E-2]
["Ni",null,null,"Annual",null,null,"N/A","N/A",1.7999999999999999E-2]
["Zn",null,null,"Annual",null,5,"N/A","N/A",1.9E-2]
["COD",null,null,"Annual",null,800,"N/A","N/A",110]

{"sheet":"Air (periodic)","index":13,"n_rows":39,"n_cols":13,"rows_kept":39,"cut":false,"hidden":false,"merged":[[13,10,14,12],[15,10,16,10],[15,11,16,11],[15,12,16,12],[18,3,18,4],[13,3,13,4],[14,3,14,4],[15,3,15,4],[16,3,16,4],[17,3,17,4],[21,3,21,4],[22,3,22,4],[23,3,23,4],[24,3,24,4],[31,3,31,4],[25,3,25,4],[26,3,26,4],[28,3,28,4],[38,0,38,9],[19,0,19,1],[20,0,20,1],[21,0,21,1],[34,3,34,4],[35,3,35,4],[33,0,33,1],[34,0,34,1],[35,0,35,1],[36,0,36,1],[24,0,24,1],[32,3,32,4],[27,3,27,4],[33,3,33,4],[19,3,19,4],[20,3,20,4],[39,0,40,9],[25,0,25,1],[26,0,26,1],[22,0,22,1],[23,0,23,1],[37,0,37,1],[27,0,27,1],[28,0,28,1],[29,0,29,1],[30,0,30,1],[31,0,31,1],[32,0,32,1],[37,3,37,4],[29,3,29,4],[30,3,30,4],[36,3,36,4],[16,0,16,1],[17,0,17,1],[18,0,18,1],[13,0,13,1],[14,0,14,1],[15,0,15,1],[12,0,12,1],[11,3,11,4],[12,3,12,4],[9,0,10,1],[9,5,9,9],[9,3,10,4],[9,2,10,2],[5,10,8,13],[9,10,11,13],[8,0,8,9],[5,0,6,9],[11,0,11,1]]}
[{"$f":"+'Cover Page'!$B$29","v":"Annual Performance Report 2023"},null,null,null,{"$f":"+'Cover Page'!$B$33","v":"Wolverhampton Energy from Waste Facility "}]
[]
["Emissions to Air (periodically monitored)"]
[]
["Summary of monitoring undertaken, standards used and compliance",null,null,null,null,null,null,null,null,null,"Notes:"]
["In accordance with Permit.",null,null,null,null,null,null,null,null,null,"Template may require adjustment for any bespoke monitoring requirements of permit - please also check that all default ELV values, reference periods and the stated oxygen reference value match those for your plant, and edit if necessary!"]
[]
[]
["Results of emissions to air that are periodically monitored - oxygen reference 6% "]
["Substance",null,"Ref. Period","Emission Limit Value*",null,"Average",null,null,null,null,"User to add additional tables as necessary, depending on whether quarterly or bi-annual reporting is required for the compliance year"]
[null,null,null,null,null,"A1","A2","A3","A4","A5"]
["Hydrogen fluoride",null,"1 hr","2 mg/m3",null,0.6,0.36499999999999999]
["Cd and Th and their compounds",null,"0.5-8hrs","0.05 mg/m3",null,1.0499999999999999E-3,1.0499999999999999E-3]
["Hg and its compounds",null,"0.5-8hrs","0.05 mg/m3",null,4.0000000000000001E-3,2.5000000000000001E-3,null,null,null,"* Denotes limits that were in force until 2 December 2023; from 3 December 2023 the following new limits applied (those not listed remained unchanged):"]
["Sb, As, Pb, Cr, Co, Cu, Mn, Ni, V and their compounds",null,"0.5-8hrs","0.5 mg/m3",null,2.5999999999999999E-2,4.2000000000000003E-2]
["Dioxins & Furans (I-TEQ)",null,"6-8hrs","0.1 ng/m3",null,1.4005E-2,0.1008,null,null,null,"Substance","Reference Period","Emission Limit Value"]
["PCBs (WHO-TEQ Humans / Mammals)",null,"6-8hrs","None set ng/m3",null,1.5499999999999999E-3,7.5500000000000003E-3]
["PCBs (WHO-TEQ Fish)",null,"6-8hrs","None set ng/m3",null,1E-4,4.4999999999999999E-4,null,null,null,"Hydrogen fluoride","Average of three consecutive measurements of at least 30 minutes each","1 mg/m3"]
["PCBs (WHO-TEQ Birds)",null,"6-8hrs","None set ng/m3",null,4.4000000000000003E-3,1.6199999999999999E-2,null,null,null,"Cd and Th and their compounds","Average of three consecutive measurements of at least 30 minutes each","0.02 mg/m3"]
["Dioxins & Furans (WHO-TEQ Humans / Mammals)",null,"6-8hrs","None set ng/m3",null,2.58E-2,8.0149999999999999E-2,null,null,null,"Hg and its compounds","Average of three consecutive measurements of at least 30 minutes each","0.02 mg/m3"]
["Dioxins & Furans (WHO-TEQ Fish)",null,"6-8hrs","None set ng/m3",null,0.03,9.2299999999999993E-2,null,null,null,"Sb, As, Pb, Cr, Co, Cu, Mn, Ni, V and their compounds","Average of three consecutive measurements of at least 30 minutes each","0.3 mg/m3"]
["Dioxins & Furans (WHO-TEQ Birds)",null,"6-8hrs","None set ng/m3",null,5.8099999999999999E-2,0.13825000000000001,null,null,null,"Dioxins & Furans (I-TEQ)","6-8hrs","0.06 ng/m3"]
["Anthanthrene",null,"6-8hrs","None set µg/m3",null,"<0.0014","<0.0014"]
["Benzo(a)anthracene",null,"6-8hrs","None set µg/m3",null,0,"<0.0014"]
["Benzo(a)pyrene",null,"6-8hrs","None set µg/m3",null,"<0.0014","<0.0014"]
["Benzo(b)fluoranthene",null,"6-8hrs","None set µg/m3",null,0,"<0.0014"]
["Benzo(b)naptho(2,1-d) thiophene",null,"6-8hrs","None set µg/m3",null,0,"<0.0014"]
["Benzo(c)phenanthrene",null,"6-8hrs","None set µg/m3",null,0,"<0.0014"]
["Benzo(ghi)perylene",null,"6-8hrs","None set µg/m3",null,0.01,0]
["Benzo(k)fluoranthene",null,"6-8hrs","None set µg/m3",null,0,"<0.0014"]
["Cholanthrene",null,"6-8hrs","None set µg/m3",null,"<0.0014","<0.0014"]
["Chrysene",null,"6-8hrs","None set µg/m3",null,0.01,0]
["Cyclopenta(cd)pyrene",null,"6-8hrs","None set µg/m3",null,"<0.0014","<0.0014"]
["Dibenzo(ai)pyrene",null,"6-8hrs","None set µg/m3",null,"<0.0014","<0.0014"]
["Dibenzo(ah)anthracene",null,"6-8hrs","None set µg/m3",null,"<0.0014","<0.0014"]
["Fluoranthene",null,"6-8hrs","None set µg/m3",null,0.12,0.04]
["Indeno(123-cd) pyrene",null,"6-8hrs","None set µg/m3",null,0,"<0.0014"]
["Naphthalene",null,"6-8hrs","None set µg/m3",null,18.399999999999999,6.86]
["Comments :"]

{"sheet":"Air (CEMS)","index":14,"n_rows":29,"n_cols":16,"rows_kept":29,"cut":false,"hidden":false,"merged":[[11,11,11,12],[5,0,6,12],[7,0,8,12],[10,0,10,12],[11,0,12,0],[11,2,12,2],[11,1,12,1],[11,3,11,4],[11,5,11,6],[11,7,11,8],[11,9,11,10],[29,0,30,12],[13,0,14,0],[14,13,15,13],[14,14,15,14],[14,15,15,15],[12,13,13,15],[27,0,27,12]]}
[{"$f":"+'[2]Cover Page'!$B$29","v":"Annual Performance Report 2023"},null,null,null,null,null,null,null,{"$f":"+'[2]Cover Page'!$B$33","v":"Wolverhampton Energy from Waste Facility "}]
[]
["Emissions to Air (continously monitored)"]
[null,null,null,null,null,null,null,null,null,null,null,null,null,"Notes:"]
["Summary of monitoring undertaken, standards used and compliance",null,null,null,null,null,null,null,null,null,null,null,null,"Template may require adjustment for any bespoke monitoring requirements of permit"]
[null,null,null,null,null,null,null,null,null,null,null,null,null,"Please check that all default ELV values match those for your plant and edit if necessary!"]
[null,null,null,null,null,null,null,null,null,null,null,null,null,"Report to 1 decimal place"]
[]
[]
[]
["Results of emissions to air that are continuously monitored (maximum and average values for each line) - oxygen reference 11%"]
["Substance","Reference Period","Emission Limit Value**","A1",null,"A2",null,"A3",null,"A4",null,"A5"]
[null,null,null,"Max.","Avg.","Max.","Avg.","Max.","Avg.","Max.","Avg.","Max.","Avg.","** Denotes limits that were in force until 2 December 2023; from 3 December 2023 the following new limits applied (those not listed remained unchanged):"]
["Oxides of nitrogen","Daily mean","200 mg/m3 ",189,171.62,189,169.42833333333334]
[null,"½ hourly mean","400 mg/m3 ",399,172.08333333333334,449,169.41666666666666,null,null,null,null,null,null,"Substance","Reference Period","Emission Limit Value"]
["Particulates","Daily mean","10 mg/m3",5,0.11583333333333334,2,0.25]
[null,"½ hourly mean","30 mg/m3 ",88,0.17666666666666664,21,0.36,null,null,null,null,null,null,"Oxides of nitrogen","Daily mean","180 mg/m3 "]
["Total Organic Carbon ","Daily mean","10 mg/m3 ",4,0.41,2,0.39,null,null,null,null,null,null,"Particulates","Daily mean","5 mg/m3 "]
[null,"½ hourly mean","20 mg/m3 ",190,0.42250000000000004,44,0.43750000000000006,null,null,null,null,null,null,"Hydrogen chloride","Daily mean","8 mg/m3 "]
["Hydrogen chloride ","Daily mean","10 mg/m3 ",12,5.9041666666666659,8,5.2158333333333333,null,null,null,null,null,null,"Sulphur dioxide","Daily mean","40 mg/m3 "]
[null,"½ hourly mean","60 mg/m3 ",180,5.916666666666667,76,5.25,null,null,null,null,null,null,"Ammonia","Daily mean","15 mg/m3 "]
["Sulphur dioxide","Daily mean","50 mg/m3 ",33,16.859166666666667,45,20.25333333333333]
[null,"½ hourly mean","200 mg/m3 ",124,17.5,211,18.583333333333332]
["Carbon monoxide ","Daily mean","50 mg/m3 ",106,7.6216666666666661,72,7.0599999999999987]
[null,"½ hourly mean *","100 mg/m3 *"]
[null,"95%ile 10-min avg *","150 mg/m3 *",1590,10.333333333333334,369,7.416666666666667]
[" Ammonia","Daily mean","No limit set until 03/12/23",14,4.7158333333333333,49,8.8249999999999993]
["** = delete as appropriate, depending on whether your plant has half-horly or 10-min CO ELVs\n"]
["Comments :"]

{"sheet":"HCl","index":15,"n_rows":79,"n_cols":17,"rows_kept":79,"cut":false,"hidden":false,"merged":[[3,16,7,18],[9,16,11,18],[18,4,18,6],[12,16,15,18],[51,9,63,9],[66,9,78,9],[4,9,4,14],[4,1,4,3],[4,4,4,6],[48,0,51,6],[47,0,47,6],[6,9,18,9],[21,9,33,9],[36,9,48,9]]}
[{"$f":"+'[2]Cover Page'!$B$29","v":"Annual Performance Report 2023"},null,null,null,{"$f":"+'[2]Cover Page'!$B$33","v":"Wolverhampton Energy from Waste Facility "}]
[]
["Monitoring of Hydrogen Chloride emissions",null,null,"Whole Installation",null,null,"See  Notes in Cell Q3",null,null,{"$f":"+A3","v":"Monitoring of Hydrogen Chloride emissions"},null,null,null,"Per Combustion Line",null,null,"Notes:"]
[null,null,null,null,null,null,null,null,null,null,null,null,null,null,null,null,"User to add logic to complete Whole installation, Table A5:G18. From the data in Per Combustion Line, Table J6:O79, subject to No. of lines installed"]
["mg/Nm3","1/2 Hourly Reference Periods",null,null,"Daily Reference Periods"]
[{"$f":"+'[2]Cover Page'!C39","v":2023},"1/2 hourly HCl ELV","Monthly 1/2 hourly mean","Highest 1/2 hourly maximum","Daily HCl ELV*","Monthly daily mean","Highest daily maximum",null,null,{"$f":"+A6","v":2023},"mg/Nm3","Monthly 1/2 hourly mean","Monthly 1/2 hourly maximum","Monthly daily mean","Monthly daily maximum"]
["Jan",60,{"$f":"AVERAGE(L7,L22)","v":6.5},{"$f":"M22","v":42},10,{"$f":"AVERAGE(N7,N22)","v":6.1},{"$f":"MAX(O7,O22)","v":8},null,null,"A1","Jan",7,20,6.63,8]
["Feb",60,5.5,{"$f":"M23","v":68},10,5.7349999999999994,9,null,null,null,"Feb",6,40,6.55,9]
["Mar",60,6,{"$f":"M9","v":180},10,5.71,12,null,null,null,"Mar",7,180,6.42,12,null,"Whole Installation table A5:G18:"]
["Apr",60,6,{"$f":"M25","v":38},10,5.9450000000000003,8,null,null,null,"Apr",6,25,6,7,null,"Mean: for 1/2 hourly and daily periods calculate mean of values across all operational combustion lines for the month"]
["May",60,5.5,{"$f":"M11","v":31},10,5.6749999999999998,7,null,null,null,"May",6,31,6.27,7]
["Jun",60,5.5,{"$f":"M12","v":28},10,5.79,7,null,null,null,"Jun",6,28,6.55,7]
["Jul",60,6,{"$f":"M13","v":17},10,5.8800000000000008,8,null,null,null,"Jul",6,17,6.15,7,null,"Maximum: for 1/2 hourly and daily periods use the highest value across all operational combustion lines for the month"]
["Aug",60,6,{"$f":"M29","v":76},10,6.32,8,null,null,null,"Aug",6,19,6,8]
["Sep",60,6,{"$f":"M15","v":39},10,5.88,8,null,null,null,"Sep",7,39,6.8,8]
["Oct",60,5.5,{"$f":"M16","v":68},10,5.43,8,null,null,null,"Oct",6,68,5.92,8]
["Nov",60,3,{"$f":"M32","v":18},10,3.1,6,null,null,null,"Nov",2,6,2.2000000000000002,3]
["Dec",60,5.5,{"$f":"M18","v":26},10,5.1550000000000002,8,null,null,null,"Dec",6,26,5.36,8]
[null,null,null,null,"* ELV reduced to 8 mg/Nm3 on 3 December 2023",null,null,null,null,null,"Annual",{"$f":"AVERAGE(L7:L18)","v":5.916666666666667},{"$f":"MAX(M7:M18)","v":180},{"$f":"AVERAGE(N7:N18)","v":5.9041666666666659},{"$f":"MAX(O7:O18)","v":12}]
[]
[null,null,null,null,null,null,null,null,null,{"$f":"+A6","v":2023},"mg/Nm3","Monthly 1/2 hourly mean","Monthly 1/2 hourly maximum","Monthly daily mean","Monthly daily maximum"]
[null,null,null,null,null,null,null,null,null,"A2","Jan",6,42,5.57,7]
[null,null,null,null,null,null,null,null,null,null,"Feb",5,68,4.92,8]
[null,null,null,null,null,null,null,null,null,null,"Mar",5,18,5,7]
[null,null,null,null,null,null,null,null,null,null,"Apr",6,38,5.89,8]
[null,null,null,null,null,null,null,null,null,null,"May",5,15,5.08,7]
[null,null,null,null,null,null,null,null,null,null,"Jun",5,19,5.03,7]
[null,null,null,null,null,null,null,null,null,null,"Jul",6,16,5.61,8]
[null,null,null,null,null,null,null,null,null,null,"Aug",6,76,6.64,7]
[null,null,null,null,null,null,null,null,null,null,"Sep",5,32,4.96,7]
[null,null,null,null,null,null,null,null,null,null,"Oct",5,15,4.9400000000000004,6]
[null,null,null,null,null,null,null,null,null,null,"Nov",4,18,4,6]
[null,null,null,null,null,null,null,null,null,null,"Dec",5,14,4.95,7]
[null,null,null,null,null,null,null,null,null,null,"Annual",{"$f":"AVERAGE(L22:L33)","v":5.25},{"$f":"MAX(M22:M33)","v":76},{"$f":"AVERAGE(N22:N33)","v":5.2158333333333333},{"$f":"MAX(O22:O33)","v":8}]
[]
[null,null,null,null,null,null,null,null,null,{"$f":"+A6","v":2023},"mg/Nm3","Monthly 1/2 hourly mean","Monthly 1/2 hourly maximum","Monthly daily mean","Monthly daily maximum"]
[null,null,null,null,null,null,null,null,null,"A3","Jan"]
[null,null,null,null,null,null,null,null,null,null,"Feb"]
[null,null,null,null,null,null,null,null,null,null,"Mar"]
[null,null,null,null,null,null,null,null,null,null,"Apr"]
[null,null,null,null,null,null,null,null,null,null,"May"]
[null,null,null,null,null,null,null,null,null,null,"Jun"]
[null,null,null,null,null,null,null,null,null,null,"Jul"]
[null,null,null,null,null,null,null,null,null,null,"Aug"]
[null,null,null,null,null,null,null,null,null,null,"Sep"]
[null,null,null,null,null,null,null,null,null,null,"Oct"]
[null,null,null,null,null,null,null,null,null,null,"Nov"]
["Comments :",null,null,null,null,null,null,null,null,null,"Dec"]
[null,null,null,null,null,null,null,null,null,null,"Annual",{"$f":"AVERAGE(L37:L48)","v":{"$error":"#DIV/0!"}},{"$f":"MAX(M37:M48)","v":0},{"$f":"AVERAGE(N37:N48)","v":{"$error":"#DIV/0!"}},{"$f":"MAX(O37:O48)","v":0}]
[]
[null,null,null,null,null,null,null,null,null,{"$f":"+A6","v":2023},"mg/Nm3","Monthly 1/2 hourly mean","Monthly 1/2 hourly maximum","Monthly daily mean","Monthly daily maximum"]
[null,null,null,null,null,null,null,null,null,"A4","Jan"]
[null,null,null,null,null,null,null,null,null,null,"Feb"]
[null,null,null,null,null,null,null,null,null,null,"Mar"]
[null,null,null,null,null,null,null,null,null,null,"Apr"]
[null,null,null,null,null,null,null,null,null,null,"May"]
[null,null,null,null,null,null,null,null,null,null,"Jun"]
[null,null,null,null,null,null,null,null,null,null,"Jul"]
[null,null,null,null,null,null,null,null,null,null,"Aug"]
[null,null,null,null,null,null,null,null,null,null,"Sep"]
[null,null,null,null,null,null,null,null,null,null,"Oct"]
[null,null,null,null,null,null,null,null,null,null,"Nov"]
[null,null,null,null,null,null,null,null,null,null,"Dec"]
[null,null,null,null,null,null,null,null,null,null,"Annual",{"$f":"AVERAGE(L52:L63)","v":{"$error":"#DIV/0!"}},{"$f":"MAX(M52:M63)","v":0},{"$f":"AVERAGE(N52:N63)","v":{"$error":"#DIV/0!"}},{"$f":"MAX(O52:O63)","v":0}]
[]
[null,null,null,null,null,null,null,null,null,{"$f":"+A6","v":2023},"mg/Nm3","Monthly 1/2 hourly mean","Monthly 1/2 hourly maximum","Monthly daily mean","Monthly daily maximum"]
[null,null,null,null,null,null,null,null,null,"A5","Jan"]
[null,null,null,null,null,null,null,null,null,null,"Feb"]
[null,null,null,null,null,null,null,null,null,null,"Mar"]
[null,null,null,null,null,null,null,null,null,null,"Apr"]
[null,null,null,null,null,null,null,null,null,null,"May"]
[null,null,null,null,null,null,null,null,null,null,"Jun"]
[null,null,null,null,null,null,null,null,null,null,"Jul"]
[null,null,null,null,null,null,null,null,null,null,"Aug"]
[null,null,null,null,null,null,null,null,null,null,"Sep"]
[null,null,null,null,null,null,null,null,null,null,"Oct"]
[null,null,null,null,null,null,null,null,null,null,"Nov"]
[null,null,null,null,null,null,null,null,null,null,"Dec"]
[null,null,null,null,null,null,null,null,null,null,"Annual",{"$f":"AVERAGE(L67:L78)","v":{"$error":"#DIV/0!"}},{"$f":"MAX(M67:M78)","v":0},{"$f":"AVERAGE(N67:N78)","v":{"$error":"#DIV/0!"}},{"$f":"MAX(O67:O78)","v":0}]

{"sheet":"SO2","index":16,"n_rows":79,"n_cols":17,"rows_kept":79,"cut":false,"hidden":false,"merged":[[3,16,7,18],[9,16,11,18],[12,16,15,18],[66,9,78,9],[4,1,4,3],[4,4,4,6],[4,9,4,14],[6,9,18,9],[21,9,33,9],[36,9,48,9],[47,0,47,6],[48,0,51,6],[51,9,63,9],[18,4,18,6]]}
[{"$f":"+'[2]Cover Page'!$B$29","v":"Annual Performance Report 2023"},null,null,null,{"$f":"+'[2]Cover Page'!$B$33","v":"Wolverhampton Energy from Waste Facility "}]
[]
["Monitoring of Sulphur dioxide emissions",null,null,"Whole Installation",null,null,"See  Notes in Cell Q3",null,null,{"$f":"+A3","v":"Monitoring of Sulphur dioxide emissions"},null,null,null,"Per Combustion Line",null,null,"Notes:"]
[null,null,null,null,null,null,null,null,null,null,null,null,null,null,null,null,"User to add logic to complete Whole installation, Table A5:G18. From the data in Per Combustion Line, Table J6:O79, subject to No. of lines installed"]
["mg/Nm3","1/2 Hourly Reference Periods",null,null,"Daily Reference Periods"]
[{"$f":"+'[2]Cover Page'!C39","v":2023},"1/2 hourly SO2 ELV","Monthly 1/2 hourly mean","Highest 1/2 hourly maximum","Daily SO2 ELV*","Monthly daily mean","Highest daily maximum",null,null,{"$f":"+A6","v":2023},"mg/Nm3","Monthly 1/2 hourly mean","Monthly 1/2 hourly maximum","Monthly daily mean","Monthly daily maximum"]
["Jan",200,{"$f":"AVERAGE(L7,L22)","v":16.5},{"$f":"MAX(M7,M22)","v":114},50,{"$f":"AVERAGE(N7,N22)","v":17.89},{"$f":"MAX(O7,O22)","v":27},null,null,"A1","Jan",17,114,16.45,26]
["Feb",200,17,87,50,16.59,32,null,null,null,"Feb",21,84,19.89,32]
["Mar",200,15.5,124,50,14.664999999999999,28,null,null,null,"Mar",19,124,18.2,28,null,"Whole Installation table A5:G18:"]
["Apr",200,19.5,201,50,19.024999999999999,33,null,null,null,"Apr",22,96,22.27,33,null,"Mean: for 1/2 hourly and daily periods calculate mean of values across all operational combustion lines for the month"]
["May",200,21,211,50,20.265000000000001,31,null,null,null,"May",19,107,16.78,24]
["Jun",200,20,124,50,19.435000000000002,28,null,null,null,"Jun",21,87,20.67,28]
["Jul",200,22.5,110,50,31.6,45,null,null,null,"Jul",19,87,17.73,31,null,"Maximum: for 1/2 hourly and daily periods use the highest value across all operational combustion lines for the month"]
["Aug",200,19.5,128,50,18.684999999999999,29,null,null,null,"Aug",17,91,16.559999999999999,28]
["Sep",200,16.5,95,50,16.68,29,null,null,null,"Sep",13,65,12.76,23]
["Oct",200,15,77,50,14.705,28,null,null,null,"Oct",13,77,11.8,21]
["Nov",200,19.5,113,50,18.504999999999999,31,null,null,null,"Nov",16,113,16.2,20]
["Dec",200,14,72,50,14.63,27,null,null,null,"Dec",13,65,13,22]
[null,null,null,null,"* ELV reduced to 40 mg/Nm3 on 3 December 2023",null,null,null,null,null,"Annual",{"$f":"AVERAGE(L7:L18)","v":17.5},{"$f":"MAX(M7:M18)","v":124},{"$f":"AVERAGE(N7:N18)","v":16.859166666666667},{"$f":"MAX(O7:O18)","v":33}]
[]
[null,null,null,null,null,null,null,null,null,{"$f":"+A6","v":2023},"mg/Nm3","Monthly 1/2 hourly mean","Monthly 1/2 hourly maximum","Monthly daily mean","Monthly daily maximum"]
[null,null,null,null,null,null,null,null,null,"A2","Jan",16,114,19.329999999999998,27]
[null,null,null,null,null,null,null,null,null,null,"Feb",13,87,13.29,27]
[null,null,null,null,null,null,null,null,null,null,"Mar",12,103,11.13,23]
[null,null,null,null,null,null,null,null,null,null,"Apr",17,201,15.78,29]
[null,null,null,null,null,null,null,null,null,null,"May",23,211,23.75,31]
[null,null,null,null,null,null,null,null,null,null,"Jun",19,124,18.2,28]
[null,null,null,null,null,null,null,null,null,null,"Jul",26,110,45.47,45]
[null,null,null,null,null,null,null,null,null,null,"Aug",22,128,20.81,29]
[null,null,null,null,null,null,null,null,null,null,"Sep",20,95,20.6,29]
[null,null,null,null,null,null,null,null,null,null,"Oct",17,70,17.61,28]
[null,null,null,null,null,null,null,null,null,null,"Nov",23,88,20.81,31]
[null,null,null,null,null,null,null,null,null,null,"Dec",15,72,16.260000000000002,27]
[null,null,null,null,null,null,null,null,null,null,"Annual",{"$f":"AVERAGE(L22:L33)","v":18.583333333333332},{"$f":"MAX(M22:M33)","v":211},{"$f":"AVERAGE(N22:N33)","v":20.25333333333333},{"$f":"MAX(O22:O33)","v":45}]
[]
[null,null,null,null,null,null,null,null,null,{"$f":"+A6","v":2023},"mg/Nm3","Monthly 1/2 hourly mean","Monthly 1/2 hourly maximum","Monthly daily mean","Monthly daily maximum"]
[null,null,null,null,null,null,null,null,null,"A3","Jan"]
[null,null,null,null,null,null,null,null,null,null,"Feb"]
[null,null,null,null,null,null,null,null,null,null,"Mar"]
[null,null,null,null,null,null,null,null,null,null,"Apr"]
[null,null,null,null,null,null,null,null,null,null,"May"]
[null,null,null,null,null,null,null,null,null,null,"Jun"]
[null,null,null,null,null,null,null,null,null,null,"Jul"]
[null,null,null,null,null,null,null,null,null,null,"Aug"]
[null,null,null,null,null,null,null,null,null,null,"Sep"]
[null,null,null,null,null,null,null,null,null,null,"Oct"]
[null,null,null,null,null,null,null,null,null,null,"Nov"]
["Comments :",null,null,null,null,null,null,null,null,null,"Dec"]
[null,null,null,null,null,null,null,null,null,null,"Annual",{"$f":"AVERAGE(L37:L48)","v":{"$error":"#DIV/0!"}},{"$f":"MAX(M37:M48)","v":0},{"$f":"AVERAGE(N37:N48)","v":{"$error":"#DIV/0!"}},{"$f":"MAX(O37:O48)","v":0}]
[]
[null,null,null,null,null,null,null,null,null,{"$f":"+A6","v":2023},"mg/Nm3","Monthly 1/2 hourly mean","Monthly 1/2 hourly maximum","Monthly daily mean","Monthly daily maximum"]
[null,null,null,null,null,null,null,null,null,"A4","Jan"]
[null,null,null,null,null,null,null,null,null,null,"Feb"]
[null,null,null,null,null,null,null,null,null,null,"Mar"]
[null,null,null,null,null,null,null,null,null,null,"Apr"]
[null,null,null,null,null,null,null,null,null,null,"May"]
[null,null,null,null,null,null,null,null,null,null,"Jun"]
[null,null,null,null,null,null,null,null,null,null,"Jul"]
[null,null,null,null,null,null,null,null,null,null,"Aug"]
[null,null,null,null,null,null,null,null,null,null,"Sep"]
[null,null,null,null,null,null,null,null,null,null,"Oct"]
[null,null,null,null,null,null,null,null,null,null,"Nov"]
[null,null,null,null,null,null,null,null,null,null,"Dec"]
[null,null,null,null,null,null,null,null,null,null,"Annual",{"$f":"AVERAGE(L52:L63)","v":{"$error":"#DIV/0!"}},{"$f":"MAX(M52:M63)","v":0},{"$f":"AVERAGE(N52:N63)","v":{"$error":"#DIV/0!"}},{"$f":"MAX(O52:O63)","v":0}]
[]
[null,null,null,null,null,null,null,null,null,{"$f":"+A6","v":2023},"mg/Nm3","Monthly 1/2 hourly mean","Monthly 1/2 hourly maximum","Monthly daily mean","Monthly daily maximum"]
[null,null,null,null,null,null,null,null,null,"A5","Jan"]
[null,null,null,null,null,null,null,null,null,null,"Feb"]
[null,null,null,null,null,null,null,null,null,null,"Mar"]
[null,null,null,null,null,null,null,null,null,null,"Apr"]
[null,null,null,null,null,null,null,null,null,null,"May"]
[null,null,null,null,null,null,null,null,null,null,"Jun"]
[null,null,null,null,null,null,null,null,null,null,"Jul"]
[null,null,null,null,null,null,null,null,null,null,"Aug"]
[null,null,null,null,null,null,null,null,null,null,"Sep"]
[null,null,null,null,null,null,null,null,null,null,"Oct"]
[null,null,null,null,null,null,null,null,null,null,"Nov"]
[null,null,null,null,null,null,null,null,null,null,"Dec"]
[null,null,null,null,null,null,null,null,null,null,"Annual",{"$f":"AVERAGE(L67:L78)","v":{"$error":"#DIV/0!"}},{"$f":"MAX(M67:M78)","v":0},{"$f":"AVERAGE(N67:N78)","v":{"$error":"#DIV/0!"}},{"$f":"MAX(O67:O78)","v":0}]

{"sheet":"NOx","index":17,"n_rows":79,"n_cols":17,"rows_kept":79,"cut":false,"hidden":false,"merged":[[3,16,7,18],[9,16,11,18],[12,16,15,18],[66,9,78,9],[4,1,4,3],[4,4,4,6],[4,9,4,14],[6,9,18,9],[21,9,33,9],[36,9,48,9],[47,0,47,6],[48,0,51,6],[51,9,63,9],[18,4,18,6]]}
[{"$f":"+'[2]Cover Page'!$B$29","v":"Annual Performance Report 2023"},null,null,null,{"$f":"+'[2]Cover Page'!$B$33","v":"Wolverhampton Energy from Waste Facility "}]
[]
["Monitoring of Oxides of Nitrogen emissions",null,null,"Whole Installation",null,null,"See  Notes in Cell Q3",null,null,{"$f":"+A3","v":"Monitoring of Oxides of Nitrogen emissions"},null,null,null,"Per Combustion Line",null,null,"Notes:"]
[null,null,null,null,null,null,null,null,null,null,null,null,null,null,null,null,"User to add logic to complete Whole installation, Table A5:G18. From the data in Per Combustion Line, Table J6:O79, subject to No. of lines installed"]
["mg/Nm3","1/2 Hourly Reference Periods",null,null,"Daily Reference Periods"]
[{"$f":"+'[2]Cover Page'!C39","v":2023},"1/2 hourly NOx ELV","Monthly 1/2 hourly mean","Highest 1/2 hourly maximum","Daily NOx ELV*","Monthly daily mean","Highest daily maximum",null,null,{"$f":"+A6","v":2023},"mg/Nm3","Monthly 1/2 hourly mean","Monthly 1/2 hourly maximum","Monthly daily mean","Monthly daily maximum"]
["Jan",400,{"$f":"AVERAGE(L7,L22)","v":179},{"$f":"MAX(M7,M22)","v":311},200,{"$f":"AVERAGE(N7,N22)","v":178.05},{"$f":"MAX(O7,O22)","v":189},null,null,"A1","Jan",186,246,185.4,187]
["Feb",400,172,315,200,170.93,189,null,null,null,"Feb",185,315,184.44,189]
["Mar",400,167.5,399,200,166.66500000000002,187,null,null,null,"Mar",167,399,165.33,187,null,"Whole Installation table A5:G18:"]
["Apr",400,172,340,200,166.17,184,null,null,null,"Apr",172,338,160.66999999999999,182,null,"Mean: for 1/2 hourly and daily periods calculate mean of values across all operational combustion lines for the month"]
["May",400,170.5,449,200,170.68,177,null,null,null,"May",171,321,171.11,177]
["Jun",400,171,360,200,170.75,174,null,null,null,"Jun",172,284,171,173]
["Jul",400,170.5,448,200,171.01499999999999,179,null,null,null,"Jul",171,298,170.65,175,null,"Maximum: for 1/2 hourly and daily periods use the highest value across all operational combustion lines for the month"]
["Aug",400,171,278,200,170.73500000000001,174,null,null,null,"Aug",171,278,170.66,174]
["Sep",400,171,286,200,170.86,177,null,null,null,"Sep",171,276,170.8,177]
["Oct",400,171,338,200,170.37,174,null,null,null,"Oct",171,338,170.34,174]
["Nov",400,164.5,296,200,171.11500000000001,176,null,null,null,"Nov",160,296,171.4,176]
["Dec",400,169,323,200,168.95,178,null,null,null,"Dec",168,323,167.64,172]
[null,null,null,null,"* ELV reduced to 180 mg/Nm3 on 3 December 2023",null,null,null,null,null,"Annual",{"$f":"AVERAGE(L7:L18)","v":172.08333333333334},{"$f":"MAX(M7:M18)","v":399},{"$f":"AVERAGE(N7:N18)","v":171.62},{"$f":"MAX(O7:O18)","v":189}]
[]
[null,null,null,null,null,null,null,null,null,{"$f":"+A6","v":2023},"mg/Nm3","Monthly 1/2 hourly mean","Monthly 1/2 hourly maximum","Monthly daily mean","Monthly daily maximum"]
[null,null,null,null,null,null,null,null,null,"A2","Jan",172,311,170.7,189]
[null,null,null,null,null,null,null,null,null,null,"Feb",159,272,157.41999999999999,186]
[null,null,null,null,null,null,null,null,null,null,"Mar",168,330,168,185]
[null,null,null,null,null,null,null,null,null,null,"Apr",172,340,171.67,184]
[null,null,null,null,null,null,null,null,null,null,"May",170,449,170.25,176]
[null,null,null,null,null,null,null,null,null,null,"Jun",170,360,170.5,174]
[null,null,null,null,null,null,null,null,null,null,"Jul",170,448,171.38,179]
[null,null,null,null,null,null,null,null,null,null,"Aug",171,223,170.81,172]
[null,null,null,null,null,null,null,null,null,null,"Sep",171,286,170.92,174]
[null,null,null,null,null,null,null,null,null,null,"Oct",171,309,170.4,174]
[null,null,null,null,null,null,null,null,null,null,"Nov",169,175,170.83,175]
[null,null,null,null,null,null,null,null,null,null,"Dec",170,320,170.26,178]
[null,null,null,null,null,null,null,null,null,null,"Annual",{"$f":"AVERAGE(L22:L33)","v":169.41666666666666},{"$f":"MAX(M22:M33)","v":449},{"$f":"AVERAGE(N22:N33)","v":169.42833333333334},{"$f":"MAX(O22:O33)","v":189}]
[]
[null,null,null,null,null,null,null,null,null,{"$f":"+A6","v":2023},"mg/Nm3","Monthly 1/2 hourly mean","Monthly 1/2 hourly maximum","Monthly daily mean","Monthly daily maximum"]
[null,null,null,null,null,null,null,null,null,"A3","Jan"]
[null,null,null,null,null,null,null,null,null,null,"Feb"]
[null,null,null,null,null,null,null,null,null,null,"Mar"]
[null,null,null,null,null,null,null,null,null,null,"Apr"]
[null,null,null,null,null,null,null,null,null,null,"May"]
[null,null,null,null,null,null,null,null,null,null,"Jun"]
[null,null,null,null,null,null,null,null,null,null,"Jul"]
[null,null,null,null,null,null,null,null,null,null,"Aug"]
[null,null,null,null,null,null,null,null,null,null,"Sep"]
[null,null,null,null,null,null,null,null,null,null,"Oct"]
[null,null,null,null,null,null,null,null,null,null,"Nov"]
["Comments :",null,null,null,null,null,null,null,null,null,"Dec"]
[null,null,null,null,null,null,null,null,null,null,"Annual",{"$f":"AVERAGE(L37:L48)","v":{"$error":"#DIV/0!"}},{"$f":"MAX(M37:M48)","v":0},{"$f":"AVERAGE(N37:N48)","v":{"$error":"#DIV/0!"}},{"$f":"MAX(O37:O48)","v":0}]
[]
[null,null,null,null,null,null,null,null,null,{"$f":"+A6","v":2023},"mg/Nm3","Monthly 1/2 hourly mean","Monthly 1/2 hourly maximum","Monthly daily mean","Monthly daily maximum"]
[null,null,null,null,null,null,null,null,null,"A4","Jan"]
[null,null,null,null,null,null,null,null,null,null,"Feb"]
[null,null,null,null,null,null,null,null,null,null,"Mar"]
[null,null,null,null,null,null,null,null,null,null,"Apr"]
[null,null,null,null,null,null,null,null,null,null,"May"]
[null,null,null,null,null,null,null,null,null,null,"Jun"]
[null,null,null,null,null,null,null,null,null,null,"Jul"]
[null,null,null,null,null,null,null,null,null,null,"Aug"]
[null,null,null,null,null,null,null,null,null,null,"Sep"]
[null,null,null,null,null,null,null,null,null,null,"Oct"]
[null,null,null,null,null,null,null,null,null,null,"Nov"]
[null,null,null,null,null,null,null,null,null,null,"Dec"]
[null,null,null,null,null,null,null,null,null,null,"Annual",{"$f":"AVERAGE(L52:L63)","v":{"$error":"#DIV/0!"}},{"$f":"MAX(M52:M63)","v":0},{"$f":"AVERAGE(N52:N63)","v":{"$error":"#DIV/0!"}},{"$f":"MAX(O52:O63)","v":0}]
[]
[null,null,null,null,null,null,null,null,null,{"$f":"+A6","v":2023},"mg/Nm3","Monthly 1/2 hourly mean","Monthly 1/2 hourly maximum","Monthly daily mean","Monthly daily maximum"]
[null,null,null,null,null,null,null,null,null,"A5","Jan"]
[null,null,null,null,null,null,null,null,null,null,"Feb"]
[null,null,null,null,null,null,null,null,null,null,"Mar"]
[null,null,null,null,null,null,null,null,null,null,"Apr"]
[null,null,null,null,null,null,null,null,null,null,"May"]
[null,null,null,null,null,null,null,null,null,null,"Jun"]
[null,null,null,null,null,null,null,null,null,null,"Jul"]
[null,null,null,null,null,null,null,null,null,null,"Aug"]
[null,null,null,null,null,null,null,null,null,null,"Sep"]
[null,null,null,null,null,null,null,null,null,null,"Oct"]
[null,null,null,null,null,null,null,null,null,null,"Nov"]
[null,null,null,null,null,null,null,null,null,null,"Dec"]
[null,null,null,null,null,null,null,null,null,null,"Annual",{"$f":"AVERAGE(L67:L78)","v":{"$error":"#DIV/0!"}},{"$f":"MAX(M67:M78)","v":0},{"$f":"AVERAGE(N67:N78)","v":{"$error":"#DIV/0!"}},{"$f":"MAX(O67:O78)","v":0}]

{"sheet":"TOC","index":18,"n_rows":79,"n_cols":17,"rows_kept":79,"cut":false,"hidden":false,"merged":[[3,16,7,18],[9,16,11,18],[12,16,15,18],[66,9,78,9],[4,1,4,3],[4,4,4,6],[4,9,4,14],[6,9,18,9],[21,9,33,9],[36,9,48,9],[47,0,47,6],[48,0,51,6],[51,9,63,9]]}
[{"$f":"+'[2]Cover Page'!$B$29","v":"Annual Performance Report 2023"},null,null,null,{"$f":"+'[2]Cover Page'!$B$33","v":"Wolverhampton Energy from Waste Facility "}]
[]
["Monitoring of Total organic carbon emissions",null,null,"Whole Installation",null,null,"See  Notes in Cell Q3",null,null,{"$f":"+A3","v":"Monitoring of Total organic carbon emissions"},null,null,null,"Per Combustion Line",null,null,"Notes:"]
[null,null,null,null,null,null,null,null,null,null,null,null,null,null,null,null,"User to add logic to complete Whole installation, Table A5:G18. From the data in Per Combustion Line, Table J6:O79, subject to No. of lines installed"]
["mg/Nm3","1/2 Hourly Reference Periods",null,null,"Daily Reference Periods"]
[{"$f":"+'[2]Cover Page'!C39","v":2023},"1/2 hourly TOC ELV","Monthly 1/2 hourly mean","Highest 1/2 hourly maximum","Daily TOC ELV","Monthly daily mean","Highest daily maximum",null,null,{"$f":"+A6","v":2023},"mg/Nm3","Monthly 1/2 hourly mean","Monthly 1/2 hourly maximum","Monthly daily mean","Monthly daily maximum"]
["Jan",20,{"$f":"AVERAGE(L7,L22)","v":0.48},{"$f":"MAX(M7,M22)","v":36},10,{"$f":"AVERAGE(N7,N22)","v":0.51},{"$f":"MAX(O7,O22)","v":3},null,null,"A1","Jan",0.32,36,0.37,3]
["Feb",20,0,5,10,0.125,1,null,null,null,"Feb",0,4,0,0]
["Mar",20,0.29499999999999998,190,10,0.39,4,null,null,null,"Mar",0.36,190,0.34,4,null,"Whole Installation table A5:G18:"]
["Apr",20,0.68500000000000005,21,10,0.52500000000000002,2,null,null,null,"Apr",0.37,21,0.37,2,null,"Mean: for 1/2 hourly and daily periods calculate mean of values across all operational combustion lines for the month"]
["May",20,0.22,16,10,0.20500000000000002,1,null,null,null,"May",0.33,15,0.33,1]
["Jun",20,0.72,18,10,0.33,2,null,null,null,"Jun",0.44,18,0.22,2]
["Jul",20,0.61,15,10,0.55500000000000005,1,null,null,null,"Jul",0.22,15,0.2,1,null,"Maximum: for 1/2 hourly and daily periods use the highest value across all operational combustion lines for the month"]
["Aug",20,1,14,10,1.1499999999999999,3,null,null,null,"Aug",1,14,1.3,3]
["Sep",20,0.61499999999999999,44,10,0.49,2,null,null,null,"Sep",1,12,0.75,2]
["Oct",20,0,34,10,0,1,null,null,null,"Oct",0,0,0,0]
["Nov",20,0.5,6,10,0.5,1,null,null,null,"Nov",1,1,1,1]
["Dec",20,3.5000000000000003E-2,3,10,0.02,1,null,null,null,"Dec",0.03,1,0.04,1]
[null,null,null,null,null,null,null,null,null,null,"Annual",{"$f":"AVERAGE(L7:L18)","v":0.42250000000000004},{"$f":"MAX(M7:M18)","v":190},{"$f":"AVERAGE(N7:N18)","v":0.41},{"$f":"MAX(O7:O18)","v":4}]
[]
[null,null,null,null,null,null,null,null,null,{"$f":"+A6","v":2023},"mg/Nm3","Monthly 1/2 hourly mean","Monthly 1/2 hourly maximum","Monthly daily mean","Monthly daily maximum"]
[null,null,null,null,null,null,null,null,null,"A2","Jan",0.64,6,0.65,2]
[null,null,null,null,null,null,null,null,null,null,"Feb",0,5,0.25,1]
[null,null,null,null,null,null,null,null,null,null,"Mar",0.23,10,0.44,1]
[null,null,null,null,null,null,null,null,null,null,"Apr",1,12,0.68,1]
[null,null,null,null,null,null,null,null,null,null,"May",0.11,16,0.08,1]
[null,null,null,null,null,null,null,null,null,null,"Jun",1,7,0.44,1]
[null,null,null,null,null,null,null,null,null,null,"Jul",1,3,0.91,1]
[null,null,null,null,null,null,null,null,null,null,"Aug",1,7,1,2]
[null,null,null,null,null,null,null,null,null,null,"Sep",0.23,44,0.23,1]
[null,null,null,null,null,null,null,null,null,null,"Oct",0,34,0,1]
[null,null,null,null,null,null,null,null,null,null,"Nov",0,6,0,0]
[null,null,null,null,null,null,null,null,null,null,"Dec",0.04,3,0,0]
[null,null,null,null,null,null,null,null,null,null,"Annual",{"$f":"AVERAGE(L22:L33)","v":0.43750000000000006},{"$f":"MAX(M22:M33)","v":44},{"$f":"AVERAGE(N22:N33)","v":0.39000000000000007},{"$f":"MAX(O22:O33)","v":2}]
[]
[null,null,null,null,null,null,null,null,null,{"$f":"+A6","v":2023},"mg/Nm3","Monthly 1/2 hourly mean","Monthly 1/2 hourly maximum","Monthly daily mean","Monthly daily maximum"]
[null,null,null,null,null,null,null,null,null,"A3","Jan"]
[null,null,null,null,null,null,null,null,null,null,"Feb"]
[null,null,null,null,null,null,null,null,null,null,"Mar"]
[null,null,null,null,null,null,null,null,null,null,"Apr"]
[null,null,null,null,null,null,null,null,null,null,"May"]
[null,null,null,null,null,null,null,null,null,null,"Jun"]
[null,null,null,null,null,null,null,null,null,null,"Jul"]
[null,null,null,null,null,null,null,null,null,null,"Aug"]
[null,null,null,null,null,null,null,null,null,null,"Sep"]
[null,null,null,null,null,null,null,null,null,null,"Oct"]
[null,null,null,null,null,null,null,null,null,null,"Nov"]
["Comments :",null,null,null,null,null,null,null,null,null,"Dec"]
[null,null,null,null,null,null,null,null,null,null,"Annual",{"$f":"AVERAGE(L37:L48)","v":{"$error":"#DIV/0!"}},{"$f":"MAX(M37:M48)","v":0},{"$f":"AVERAGE(N37:N48)","v":{"$error":"#DIV/0!"}},{"$f":"MAX(O37:O48)","v":0}]
[]
[null,null,null,null,null,null,null,null,null,{"$f":"+A6","v":2023},"mg/Nm3","Monthly 1/2 hourly mean","Monthly 1/2 hourly maximum","Monthly daily mean","Monthly daily maximum"]
[null,null,null,null,null,null,null,null,null,"A4","Jan"]
[null,null,null,null,null,null,null,null,null,null,"Feb"]
[null,null,null,null,null,null,null,null,null,null,"Mar"]
[null,null,null,null,null,null,null,null,null,null,"Apr"]
[null,null,null,null,null,null,null,null,null,null,"May"]
[null,null,null,null,null,null,null,null,null,null,"Jun"]
[null,null,null,null,null,null,null,null,null,null,"Jul"]
[null,null,null,null,null,null,null,null,null,null,"Aug"]
[null,null,null,null,null,null,null,null,null,null,"Sep"]
[null,null,null,null,null,null,null,null,null,null,"Oct"]
[null,null,null,null,null,null,null,null,null,null,"Nov"]
[null,null,null,null,null,null,null,null,null,null,"Dec"]
[null,null,null,null,null,null,null,null,null,null,"Annual",{"$f":"AVERAGE(L52:L63)","v":{"$error":"#DIV/0!"}},{"$f":"MAX(M52:M63)","v":0},{"$f":"AVERAGE(N52:N63)","v":{"$error":"#DIV/0!"}},{"$f":"MAX(O52:O63)","v":0}]
[]
[null,null,null,null,null,null,null,null,null,{"$f":"+A6","v":2023},"mg/Nm3","Monthly 1/2 hourly mean","Monthly 1/2 hourly maximum","Monthly daily mean","Monthly daily maximum"]
[null,null,null,null,null,null,null,null,null,"A5","Jan"]
[null,null,null,null,null,null,null,null,null,null,"Feb"]
[null,null,null,null,null,null,null,null,null,null,"Mar"]
[null,null,null,null,null,null,null,null,null,null,"Apr"]
[null,null,null,null,null,null,null,null,null,null,"May"]
[null,null,null,null,null,null,null,null,null,null,"Jun"]
[null,null,null,null,null,null,null,null,null,null,"Jul"]
[null,null,null,null,null,null,null,null,null,null,"Aug"]
[null,null,null,null,null,null,null,null,null,null,"Sep"]
[null,null,null,null,null,null,null,null,null,null,"Oct"]
[null,null,null,null,null,null,null,null,null,null,"Nov"]
[null,null,null,null,null,null,null,null,null,null,"Dec"]
[null,null,null,null,null,null,null,null,null,null,"Annual",{"$f":"AVERAGE(L67:L78)","v":{"$error":"#DIV/0!"}},{"$f":"MAX(M67:M78)","v":0},{"$f":"AVERAGE(N67:N78)","v":{"$error":"#DIV/0!"}},{"$f":"MAX(O67:O78)","v":0}]

{"sheet":"Particulates","index":19,"n_rows":79,"n_cols":17,"rows_kept":79,"cut":false,"hidden":false,"merged":[[3,16,7,18],[9,16,11,18],[12,16,15,18],[66,9,78,9],[4,1,4,3],[4,4,4,6],[4,9,4,14],[6,9,18,9],[21,9,33,9],[36,9,48,9],[47,0,47,6],[48,0,51,6],[51,9,63,9],[18,4,18,6]]}
[{"$f":"+'[2]Cover Page'!$B$29","v":"Annual Performance Report 2023"},null,null,null,{"$f":"+'[2]Cover Page'!$B$33","v":"Wolverhampton Energy from Waste Facility "}]
[]
["Monitoring of Particulate matter emissions",null,null,"Whole Installation",null,null,"See  Notes in Cell Q3",null,null,{"$f":"+A3","v":"Monitoring of Particulate matter emissions"},null,null,null,"Per Combustion Line",null,null,"Notes:"]
[null,null,null,null,null,null,null,null,null,null,null,null,null,null,null,null,"User to add logic to complete Whole installation, Table A5:G18. From the data in Per Combustion Line, Table J6:O79, subject to No. of lines installed"]
["mg/Nm3","1/2 Hourly Reference Periods",null,null,"Daily Reference Periods"]
[{"$f":"+'[2]Cover Page'!C39","v":2023},"1/2 hourly PM ELV","Monthly 1/2 hourly mean","Highest 1/2 hourly maximum","Daily PM ELV*","Monthly daily mean","Highest daily maximum",null,null,{"$f":"+A6","v":2023},"mg/Nm3","Monthly 1/2 hourly mean","Monthly 1/2 hourly maximum","Monthly daily mean","Monthly daily maximum"]
["Jan",30,{"$f":"AVERAGE(L7,L22)","v":9.5000000000000001E-2},{"$f":"MAX(M7,M22)","v":2},10,{"$f":"AVERAGE(N7,N22)","v":0},{"$f":"MAX(O7,O22)","v":0},null,null,"A1","Jan",0.19,2,0,0]
["Feb",30,0,22,10,5.5E-2,4,null,null,null,"Feb",0,22,0.11,4]
["Mar",30,1.4999999999999999E-2,30,10,1.4999999999999999E-2,1,null,null,null,"Mar",0.03,30,0.03,1,null,"Whole Installation table A5:G18:"]
["Apr",30,5.5E-2,4,10,0.04,1,null,null,null,"Apr",0,4,0,0,null,"Mean: for 1/2 hourly and daily periods calculate mean of values across all operational combustion lines for the month"]
["May",30,0,1,10,0.04,1,null,null,null,"May",0,1,0,0]
["Jun",30,1.4999999999999999E-2,1,10,1.4999999999999999E-2,1,null,null,null,"Jun",0,1,0,0]
["Jul",30,0.5,2,10,0.19,1,null,null,null,"Jul",0,1,0,0,null,"Maximum: for 1/2 hourly and daily periods use the highest value across all operational combustion lines for the month"]
["Aug",30,0.42,88,10,0.43,5,null,null,null,"Aug",0.61,88,0.63,5]
["Sep",30,0.32500000000000001,1,10,0.12,1,null,null,null,"Sep",0,1,0,0]
["Oct",30,0.11499999999999999,1,10,0.17,1,null,null,null,"Oct",0.18,1,0.34,1]
["Nov",30,1.105,21,10,0.55500000000000005,1,null,null,null,"Nov",1,8,0.2,1]
["Dec",30,0.57500000000000007,4,10,0.56500000000000006,2,null,null,null,"Dec",0.11,4,0.08,2]
[null,null,null,null,"* ELV reduced to 5 mg/Nm3 on 3 December 2023",null,null,null,null,null,"Annual",{"$f":"AVERAGE(L7:L18)","v":0.17666666666666664},{"$f":"MAX(M7:M18)","v":88},{"$f":"AVERAGE(N7:N18)","v":0.11583333333333334},{"$f":"MAX(O7:O18)","v":5}]
[]
[null,null,null,null,null,null,null,null,null,{"$f":"+A6","v":2023},"mg/Nm3","Monthly 1/2 hourly mean","Monthly 1/2 hourly maximum","Monthly daily mean","Monthly daily maximum"]
[null,null,null,null,null,null,null,null,null,"A2","Jan",0,0,0,0]
[null,null,null,null,null,null,null,null,null,null,"Feb",0,2,0,0]
[null,null,null,null,null,null,null,null,null,null,"Mar",0,0,0,0]
[null,null,null,null,null,null,null,null,null,null,"Apr",0.11,1,0.08,1]
[null,null,null,null,null,null,null,null,null,null,"May",0,1,0.08,1]
[null,null,null,null,null,null,null,null,null,null,"Jun",0.03,1,0.03,1]
[null,null,null,null,null,null,null,null,null,null,"Jul",1,2,0.38,1]
[null,null,null,null,null,null,null,null,null,null,"Aug",0.23,1,0.23,1]
[null,null,null,null,null,null,null,null,null,null,"Sep",0.65,1,0.24,1]
[null,null,null,null,null,null,null,null,null,null,"Oct",0.05,1,0,0]
[null,null,null,null,null,null,null,null,null,null,"Nov",1.21,21,0.91,1]
[null,null,null,null,null,null,null,null,null,null,"Dec",1.04,4,1.05,2]
[null,null,null,null,null,null,null,null,null,null,"Annual",{"$f":"AVERAGE(L22:L33)","v":0.36000000000000004},{"$f":"MAX(M22:M33)","v":21},{"$f":"AVERAGE(N22:N33)","v":0.25},{"$f":"MAX(O22:O33)","v":2}]
[]
[null,null,null,null,null,null,null,null,null,{"$f":"+A6","v":2023},"mg/Nm3","Monthly 1/2 hourly mean","Monthly 1/2 hourly maximum","Monthly daily mean","Monthly daily maximum"]
[null,null,null,null,null,null,null,null,null,"A3","Jan"]
[null,null,null,null,null,null,null,null,null,null,"Feb"]
[null,null,null,null,null,null,null,null,null,null,"Mar"]
[null,null,null,null,null,null,null,null,null,null,"Apr"]
[null,null,null,null,null,null,null,null,null,null,"May"]
[null,null,null,null,null,null,null,null,null,null,"Jun"]
[null,null,null,null,null,null,null,null,null,null,"Jul"]
[null,null,null,null,null,null,null,null,null,null,"Aug"]
[null,null,null,null,null,null,null,null,null,null,"Sep"]
[null,null,null,null,null,null,null,null,null,null,"Oct"]
[null,null,null,null,null,null,null,null,null,null,"Nov"]
["Comments :",null,null,null,null,null,null,null,null,null,"Dec"]
[null,null,null,null,null,null,null,null,null,null,"Annual",{"$f":"AVERAGE(L37:L48)","v":{"$error":"#DIV/0!"}},{"$f":"MAX(M37:M48)","v":0},{"$f":"AVERAGE(N37:N48)","v":{"$error":"#DIV/0!"}},{"$f":"MAX(O37:O48)","v":0}]
[]
[null,null,null,null,null,null,null,null,null,{"$f":"+A6","v":2023},"mg/Nm3","Monthly 1/2 hourly mean","Monthly 1/2 hourly maximum","Monthly daily mean","Monthly daily maximum"]
[null,null,null,null,null,null,null,null,null,"A4","Jan"]
[null,null,null,null,null,null,null,null,null,null,"Feb"]
[null,null,null,null,null,null,null,null,null,null,"Mar"]
[null,null,null,null,null,null,null,null,null,null,"Apr"]
[null,null,null,null,null,null,null,null,null,null,"May"]
[null,null,null,null,null,null,null,null,null,null,"Jun"]
[null,null,null,null,null,null,null,null,null,null,"Jul"]
[null,null,null,null,null,null,null,null,null,null,"Aug"]
[null,null,null,null,null,null,null,null,null,null,"Sep"]
[null,null,null,null,null,null,null,null,null,null,"Oct"]
[null,null,null,null,null,null,null,null,null,null,"Nov"]
[null,null,null,null,null,null,null,null,null,null,"Dec"]
[null,null,null,null,null,null,null,null,null,null,"Annual",{"$f":"AVERAGE(L52:L63)","v":{"$error":"#DIV/0!"}},{"$f":"MAX(M52:M63)","v":0},{"$f":"AVERAGE(N52:N63)","v":{"$error":"#DIV/0!"}},{"$f":"MAX(O52:O63)","v":0}]
[]
[null,null,null,null,null,null,null,null,null,{"$f":"+A6","v":2023},"mg/Nm3","Monthly 1/2 hourly mean","Monthly 1/2 hourly maximum","Monthly daily mean","Monthly daily maximum"]
[null,null,null,null,null,null,null,null,null,"A5","Jan"]
[null,null,null,null,null,null,null,null,null,null,"Feb"]
[null,null,null,null,null,null,null,null,null,null,"Mar"]
[null,null,null,null,null,null,null,null,null,null,"Apr"]
[null,null,null,null,null,null,null,null,null,null,"May"]
[null,null,null,null,null,null,null,null,null,null,"Jun"]
[null,null,null,null,null,null,null,null,null,null,"Jul"]
[null,null,null,null,null,null,null,null,null,null,"Aug"]
[null,null,null,null,null,null,null,null,null,null,"Sep"]
[null,null,null,null,null,null,null,null,null,null,"Oct"]
[null,null,null,null,null,null,null,null,null,null,"Nov"]
[null,null,null,null,null,null,null,null,null,null,"Dec"]
[null,null,null,null,null,null,null,null,null,null,"Annual",{"$f":"AVERAGE(L67:L78)","v":{"$error":"#DIV/0!"}},{"$f":"MAX(M67:M78)","v":0},{"$f":"AVERAGE(N67:N78)","v":{"$error":"#DIV/0!"}},{"$f":"MAX(O67:O78)","v":0}]

{"sheet":"CO 0.5 hourly","index":20,"n_rows":82,"n_cols":17,"rows_kept":82,"cut":false,"hidden":false,"merged":[[4,0,5,6],[6,16,10,18],[12,16,14,18],[15,16,18,18],[69,9,81,9],[7,1,7,3],[7,4,7,6],[7,9,7,14],[9,9,21,9],[24,9,36,9],[39,9,51,9],[50,0,50,6],[51,0,54,6],[54,9,66,9]]}
[{"$f":"+'Cover Page'!$B$29","v":"Annual Performance Report 2023"},null,null,null,{"$f":"+'Cover Page'!$B$33","v":"Wolverhampton Energy from Waste Facility "}]
[]
["Monitoring of Carbon Monoxide (half hourly)",null,null,"Whole Installation",null,null,"See  Notes in Cell Q3",null,null,{"$f":"+A3","v":"Monitoring of Carbon Monoxide (half hourly)"},null,null,null,"Per Combustion Line",null,null,"Notes:"]
[]
["Please complete this tab for your plant if you have 1/2 hourly CO ELVs; otherwise, leave it blank and complete the CO 95% 10 min tab"]
[]
[null,null,null,null,null,null,null,null,null,null,null,null,null,null,null,null,"User to add logic to complete Whole installation, Table A5:G18. From the data in Per Combustion Line, Table J6:O79, subject to No. of lines installed"]
["mg/Nm3","1/2 Hourly Reference Periods",null,null,"Daily Reference Periods"]
[{"$f":"+'Cover Page'!C39","v":2023},"1/2 hourly CO ELV","Monthly 1/2 hourly mean","Highest 1/2 hourly maximum","Daily CO ELV","Monthly daily mean","Highest daily maximum",null,null,{"$f":"+A9","v":2023},"mg/Nm3","Monthly 1/2 hourly mean","Monthly 1/2 hourly maximum","Monthly daily mean","Monthly daily maximum"]
["Jan",100,null,null,50,null,null,null,null,"A1","Jan"]
["Feb",{"$f":"+B10","v":100},null,null,{"$f":"+E10","v":50},null,null,null,null,null,"Feb"]
["Mar",{"$f":"+B11","v":100},null,null,{"$f":"+E11","v":50},null,null,null,null,null,"Mar",null,null,null,null,null,"Whole Installation table A5:G18:"]
["Apr",100,null,null,50,null,null,null,null,null,"Apr",null,null,null,null,null,"Mean: for 1/2 hourly and daily periods calculate mean of values across all operational combustion lines for the month"]
["May",100,null,null,50,null,null,null,null,null,"May"]
["Jun",100,null,null,50,null,null,null,null,null,"Jun"]
["Jul",100,null,null,50,null,null,null,null,null,"Jul",null,null,null,null,null,"Maximum: for 1/2 hourly and daily periods use the highest value across all operational combustion lines for the month"]
["Aug",100,null,null,50,null,null,null,null,null,"Aug"]
["Sep",100,null,null,50,null,null,null,null,null,"Sep"]
["Oct",100,null,null,50,null,null,null,null,null,"Oct"]
["Nov",100,null,null,50,null,null,null,null,null,"Nov"]
["Dec",100,null,null,50,null,null,null,null,null,"Dec"]
[null,null,null,null,null,null,null,null,null,null,"Annual",{"$f":"AVERAGE(L10:L21)","v":{"$error":"#DIV/0!"}},{"$f":"MAX(M10:M21)","v":0},{"$f":"AVERAGE(N10:N21)","v":{"$error":"#DIV/0!"}},{"$f":"MAX(O10:O21)","v":0}]
[]
[null,null,null,null,null,null,null,null,null,{"$f":"+A9","v":2023},"mg/Nm3","Monthly 1/2 hourly mean","Monthly 1/2 hourly maximum","Monthly daily mean","Monthly daily maximum"]
[null,null,null,null,null,null,null,null,null,"A2","Jan"]
[null,null,null,null,null,null,null,null,null,null,"Feb"]
[null,null,null,null,null,null,null,null,null,null,"Mar"]
[null,null,null,null,null,null,null,null,null,null,"Apr"]
[null,null,null,null,null,null,null,null,null,null,"May"]
[null,null,null,null,null,null,null,null,null,null,"Jun"]
[null,null,null,null,null,null,null,null,null,null,"Jul"]
[null,null,null,null,null,null,null,null,null,null,"Aug"]
[null,null,null,null,null,null,null,null,null,null,"Sep"]
[null,null,null,null,null,null,null,null,null,null,"Oct"]
[null,null,null,null,null,null,null,null,null,null,"Nov"]
[null,null,null,null,null,null,null,null,null,null,"Dec"]
[null,null,null,null,null,null,null,null,null,null,"Annual",{"$f":"AVERAGE(L25:L36)","v":{"$error":"#DIV/0!"}},{"$f":"MAX(M25:M36)","v":0},{"$f":"AVERAGE(N25:N36)","v":{"$error":"#DIV/0!"}},{"$f":"MAX(O25:O36)","v":0}]
[]
[null,null,null,null,null,null,null,null,null,{"$f":"+A9","v":2023},"mg/Nm3","Monthly 1/2 hourly mean","Monthly 1/2 hourly maximum","Monthly daily mean","Monthly daily maximum"]
[null,null,null,null,null,null,null,null,null,"A3","Jan"]
[null,null,null,null,null,null,null,null,null,null,"Feb"]
[null,null,null,null,null,null,null,null,null,null,"Mar"]
[null,null,null,null,null,null,null,null,null,null,"Apr"]
[null,null,null,null,null,null,null,null,null,null,"May"]
[null,null,null,null,null,null,null,null,null,null,"Jun"]
[null,null,null,null,null,null,null,null,null,null,"Jul"]
[null,null,null,null,null,null,null,null,null,null,"Aug"]
[null,null,null,null,null,null,null,null,null,null,"Sep"]
[null,null,null,null,null,null,null,null,null,null,"Oct"]
[null,null,null,null,null,null,null,null,null,null,"Nov"]
["Comments :",null,null,null,null,null,null,null,null,null,"Dec"]
[null,null,null,null,null,null,null,null,null,null,"Annual",{"$f":"AVERAGE(L40:L51)","v":{"$error":"#DIV/0!"}},{"$f":"MAX(M40:M51)","v":0},{"$f":"AVERAGE(N40:N51)","v":{"$error":"#DIV/0!"}},{"$f":"MAX(O40:O51)","v":0}]
[]
[null,null,null,null,null,null,null,null,null,{"$f":"+A9","v":2023},"mg/Nm3","Monthly 1/2 hourly mean","Monthly 1/2 hourly maximum","Monthly daily mean","Monthly daily maximum"]
[null,null,null,null,null,null,null,null,null,"A4","Jan"]
[null,null,null,null,null,null,null,null,null,null,"Feb"]
[null,null,null,null,null,null,null,null,null,null,"Mar"]
[null,null,null,null,null,null,null,null,null,null,"Apr"]
[null,null,null,null,null,null,null,null,null,null,"May"]
[null,null,null,null,null,null,null,null,null,null,"Jun"]
[null,null,null,null,null,null,null,null,null,null,"Jul"]
[null,null,null,null,null,null,null,null,null,null,"Aug"]
[null,null,null,null,null,null,null,null,null,null,"Sep"]
[null,null,null,null,null,null,null,null,null,null,"Oct"]
[null,null,null,null,null,null,null,null,null,null,"Nov"]
[null,null,null,null,null,null,null,null,null,null,"Dec"]
[null,null,null,null,null,null,null,null,null,null,"Annual",{"$f":"AVERAGE(L55:L66)","v":{"$error":"#DIV/0!"}},{"$f":"MAX(M55:M66)","v":0},{"$f":"AVERAGE(N55:N66)","v":{"$error":"#DIV/0!"}},{"$f":"MAX(O55:O66)","v":0}]
[]
[null,null,null,null,null,null,null,null,null,{"$f":"+A9","v":2023},"mg/Nm3","Monthly 1/2 hourly mean","Monthly 1/2 hourly maximum","Monthly daily mean","Monthly daily maximum"]
[null,null,null,null,null,null,null,null,null,"A5","Jan"]
[null,null,null,null,null,null,null,null,null,null,"Feb"]
[null,null,null,null,null,null,null,null,null,null,"Mar"]
[null,null,null,null,null,null,null,null,null,null,"Apr"]
[null,null,null,null,null,null,null,null,null,null,"May"]
[null,null,null,null,null,null,null,null,null,null,"Jun"]
[null,null,null,null,null,null,null,null,null,null,"Jul"]
[null,null,null,null,null,null,null,null,null,null,"Aug"]
[null,null,null,null,null,null,null,null,null,null,"Sep"]
[null,null,null,null,null,null,null,null,null,null,"Oct"]
[null,null,null,null,null,null,null,null,null,null,"Nov"]
[null,null,null,null,null,null,null,null,null,null,"Dec"]
[null,null,null,null,null,null,null,null,null,null,"Annual",{"$f":"AVERAGE(L70:L81)","v":{"$error":"#DIV/0!"}},{"$f":"MAX(M70:M81)","v":0},{"$f":"AVERAGE(N70:N81)","v":{"$error":"#DIV/0!"}},{"$f":"MAX(O70:O81)","v":0}]

{"sheet":"CO 95% 10 min","index":21,"n_rows":82,"n_cols":19,"rows_kept":82,"cut":false,"hidden":false,"merged":[[4,0,5,7],[6,18,10,20],[12,18,14,20],[15,18,18,20],[69,10,81,10],[7,1,7,4],[7,5,7,7],[7,10,7,16],[9,10,21,10],[24,10,36,10],[39,10,51,10],[50,0,50,7],[51,0,54,7],[54,10,66,10]]}
[{"$f":"+'[2]Cover Page'!$B$29","v":"Annual Performance Report 2023"},null,null,null,{"$f":"+'[2]Cover Page'!$B$33","v":"Wolverhampton Energy from Waste Facility "}]
[]
["Monitoring of Carbon Monoxide (10-minute avg)",null,null,null,"Whole Installation",null,null,"See  Notes in Cell S3",null,{"$f":"+A3","v":"Monitoring of Carbon Monoxide (10-minute avg)"},null,null,null,null,"Per Combustion Line",null,"Notes:",null,"Notes:"]
[]
["Please complete this tab for your plant if you have 10-minute average CO ELVs; otherwise, leave it blank and complete the CO 0.5 hourly tab"]
[]
[null,null,null,null,null,null,null,null,null,null,null,null,null,null,null,null,null,null,"User to add logic to complete Whole installation, Table A5:H18. From the data in Per Combustion Line, Table K6:Q79, subject to No. of lines installed"]
["mg/Nm3","10-minute Reference Periods",null,null,null,"Daily Reference Periods"]
[{"$f":"+'[2]Cover Page'!C39","v":2023},"95%ile 10-min avg CO ELV","95%ile 10-min avg maximum","Monthly CO 10-min avg mean","10-min avg maximum","Daily CO ELV","Monthly daily mean","Highest daily maximum",null,null,{"$f":"+A9","v":2023},"mg/Nm3","95%ile 10-min avg maximum","Monthly CO 10-min avg mean","10-min avg maximum","Monthly daily mean","Monthly daily maximum"]
["Jan",150,{"$f":"MAX(M10,M25)","v":69},{"$f":"AVERAGE(N10,N25)","v":10},{"$f":"MAX(O10,O25)","v":42},50,{"$f":"AVERAGE(P10,P25)","v":10},{"$f":"MAX(Q10,Q25)","v":28},null,null,"A1","Jan",69,13,42,12.96,28]
["Feb",{"$f":"+B10","v":150},{"$f":"MAX(M11,M26)","v":55},{"$f":"AVERAGE(N11,N26)","v":6},{"$f":"MAX(O11,O26)","v":15},{"$f":"+F10","v":50},{"$f":"AVERAGE(P11,P26)","v":6.15},{"$f":"MAX(Q11,Q26)","v":15},null,null,null,"Feb",31,6,13,6.3,13]
["Mar",150,71,11.5,106,50,10.824999999999999,106,null,null,null,"Mar",71,13,106,12.88,106,null,"Whole Installation table A5:H18:"]
["Apr",150,64,8.5,21,50,7.6899999999999995,16,null,null,null,"Apr",64,9,16,8.1999999999999993,16,null,"Mean: for 10-min and daily periods use average of all operational combustion lines."]
["May",150,63,6.5,15,50,6.8449999999999998,15,null,null,null,"May",63,5,14,5.09,14]
["Jun",150,1590,9.5,126,50,7.17,15,null,null,null,"Jun",1590,11,126,6.3,14]
["Jul",150,78,5.5,22,50,4.9800000000000004,22,null,null,null,"Jul",27,4,12,4.38,12,null,"Maximum: for 10-min and daily periods use the highest of all operational combustion lines in any month."]
["Aug",150,35,4,12,50,4.2650000000000006,12,null,null,null,"Aug",32,4,12,4.33,12]
["Sep",150,50,5,24,50,5.6400000000000006,24,null,null,null,"Sep",24,4,14,4.24,14]
["Oct",150,369,9.5,72,50,8.0350000000000001,72,null,null,null,"Oct",44,6,14,6.07,24]
["Nov",150,128,25,219,50,10.925000000000001,22,null,null,null,"Nov",113,41,219,12.75,20]
["Dec",150,54,5.5,21,50,5.5649999999999995,28,null,null,null,"Dec",54,8,21,7.96,28]
[null,null,null,null,null,null,null,null,null,null,null,"Annual",{"$f":"MAX(M10:M21)","v":1590},{"$f":"AVERAGE(N10:N21)","v":10.333333333333334},{"$f":"MAX(O10:O21)","v":219},{"$f":"AVERAGE(P10:P21)","v":7.6216666666666661},{"$f":"MAX(Q10:Q21)","v":106}]
[]
[null,null,null,null,null,null,null,null,null,null,{"$f":"+A9","v":2023},"mg/Nm3","95%ile 10-min avg maximum","Monthly CO 10-min avg mean","10-min avg maximum","Monthly daily mean","Monthly daily maximum"]
[null,null,null,null,null,null,null,null,null,null,"A2","Jan",26,7,26,7.04,11]
[null,null,null,null,null,null,null,null,null,null,null,"Feb",55,6,15,6,15]
[null,null,null,null,null,null,null,null,null,null,null,"Mar",54,10,21,8.77,16]
[null,null,null,null,null,null,null,null,null,null,null,"Apr",47,8,21,7.18,11]
[null,null,null,null,null,null,null,null,null,null,null,"May",46,8,15,8.6,15]
[null,null,null,null,null,null,null,null,null,null,null,"Jun",49,8,16,8.0399999999999991,15]
[null,null,null,null,null,null,null,null,null,null,null,"Jul",78,7,22,5.58,22]
[null,null,null,null,null,null,null,null,null,null,null,"Aug",35,4,12,4.2,11]
[null,null,null,null,null,null,null,null,null,null,null,"Sep",50,6,24,7.04,24]
[null,null,null,null,null,null,null,null,null,null,null,"Oct",369,13,72,10,72]
[null,null,null,null,null,null,null,null,null,null,null,"Nov",128,9,22,9.1,22]
[null,null,null,null,null,null,null,null,null,null,null,"Dec",25,3,12,3.17,12]
[null,null,null,null,null,null,null,null,null,null,null,"Annual",{"$f":"AVERAGE(M25:M36)","v":80.166666666666671},{"$f":"AVERAGE(N25:N36)","v":7.416666666666667},{"$f":"MAX(O25:O36)","v":72},{"$f":"AVERAGE(P25:P36)","v":7.0599999999999987},{"$f":"MAX(Q25:Q36)","v":72}]
[]
[null,null,null,null,null,null,null,null,null,null,{"$f":"+A9","v":2023},"mg/Nm3","95%ile 10-min avg maximum","Monthly CO 10-min avg mean","10-min avg maximum","Monthly daily mean","Monthly daily maximum"]
[null,null,null,null,null,null,null,null,null,null,"A3","Jan"]
[null,null,null,null,null,null,null,null,null,null,null,"Feb"]
[null,null,null,null,null,null,null,null,null,null,null,"Mar"]
[null,null,null,null,null,null,null,null,null,null,null,"Apr"]
[null,null,null,null,null,null,null,null,null,null,null,"May"]
[null,null,null,null,null,null,null,null,null,null,null,"Jun"]
[null,null,null,null,null,null,null,null,null,null,null,"Jul"]
[null,null,null,null,null,null,null,null,null,null,null,"Aug"]
[null,null,null,null,null,null,null,null,null,null,null,"Sep"]
[null,null,null,null,null,null,null,null,null,null,null,"Oct"]
[null,null,null,null,null,null,null,null,null,null,null,"Nov"]
["Comments :",null,null,null,null,null,null,null,null,null,null,"Dec"]
["Environment Agency explanatory note: The 10-minute average ELV is based on the “95th percentile”. In this case this means that 95% of the 10 minute averages in the relevant 24-hour period (i.e. 137) must be below 150 mg/Nm3, and 5% (i.e. 7) are allowed to be any value above 150 mg/Nm3. Whilst we expect operators to minimise CO emissions at all times, it is perfectly acceptable for the value of the maximum 10-minute average to be above 150 mg/Nm3, provided the 95th percentile ELV has been met for that period. ",null,null,null,null,null,null,null,null,null,null,"Annual",{"$f":"AVERAGE(M40:M51)","v":{"$error":"#DIV/0!"}},null,{"$f":"MAX(O40:O51)","v":0},{"$f":"AVERAGE(P40:P51)","v":{"$error":"#DIV/0!"}},{"$f":"MAX(Q40:Q51)","v":0}]
[]
[null,null,null,null,null,null,null,null,null,null,{"$f":"+A9","v":2023},"mg/Nm3","95%ile 10-min avg maximum","Monthly CO 10-min avg mean","10-min avg maximum","Monthly daily mean","Monthly daily maximum"]
[null,null,null,null,null,null,null,null,null,null,"A4","Jan"]
[null,null,null,null,null,null,null,null,null,null,null,"Feb"]
[null,null,null,null,null,null,null,null,null,null,null,"Mar"]
[null,null,null,null,null,null,null,null,null,null,null,"Apr"]
[null,null,null,null,null,null,null,null,null,null,null,"May"]
[null,null,null,null,null,null,null,null,null,null,null,"Jun"]
[null,null,null,null,null,null,null,null,null,null,null,"Jul"]
[null,null,null,null,null,null,null,null,null,null,null,"Aug"]
[null,null,null,null,null,null,null,null,null,null,null,"Sep"]
[null,null,null,null,null,null,null,null,null,null,null,"Oct"]
[null,null,null,null,null,null,null,null,null,null,null,"Nov"]
[null,null,null,null,null,null,null,null,null,null,null,"Dec"]
[null,null,null,null,null,null,null,null,null,null,null,"Annual",{"$f":"AVERAGE(M55:M66)","v":{"$error":"#DIV/0!"}},null,{"$f":"MAX(O55:O66)","v":0},{"$f":"AVERAGE(P55:P66)","v":{"$error":"#DIV/0!"}},{"$f":"MAX(Q55:Q66)","v":0}]
[]
[null,null,null,null,null,null,null,null,null,null,{"$f":"+A9","v":2023},"mg/Nm3","95%ile 10-min avg maximum","Monthly CO 10-min avg mean","10-min avg maximum","Monthly daily mean","Monthly daily maximum"]
[null,null,null,null,null,null,null,null,null,null,"A5","Jan"]
[null,null,null,null,null,null,null,null,null,null,null,"Feb"]
[null,null,null,null,null,null,null,null,null,null,null,"Mar"]
[null,null,null,null,null,null,null,null,null,null,null,"Apr"]
[null,null,null,null,null,null,null,null,null,null,null,"May"]
[null,null,null,null,null,null,null,null,null,null,null,"Jun"]
[null,null,null,null,null,null,null,null,null,null,null,"Jul"]
[null,null,null,null,null,null,null,null,null,null,null,"Aug"]
[null,null,null,null,null,null,null,null,null,null,null,"Sep"]
[null,null,null,null,null,null,null,null,null,null,null,"Oct"]
[null,null,null,null,null,null,null,null,null,null,null,"Nov"]
[null,null,null,null,null,null,null,null,null,null,null,"Dec"]
[null,null,null,null,null,null,null,null,null,null,null,"Annual",{"$f":"AVERAGE(M70:M81)","v":{"$error":"#DIV/0!"}},null,{"$f":"MAX(O70:O81)","v":0},{"$f":"AVERAGE(P70:P81)","v":{"$error":"#DIV/0!"}},{"$f":"MAX(Q70:Q81)","v":0}]

{"sheet":"NH3","index":22,"n_rows":79,"n_cols":17,"rows_kept":79,"cut":false,"hidden":false,"merged":[[3,16,7,18],[9,16,11,18],[12,16,15,18],[66,9,78,9],[4,1,4,3],[4,4,4,6],[4,9,4,14],[6,9,18,9],[21,9,33,9],[36,9,48,9],[47,0,47,6],[48,0,51,6],[51,9,63,9],[18,4,18,6]]}
[{"$f":"+'[2]Cover Page'!$B$29","v":"Annual Performance Report 2023"},null,null,null,{"$f":"+'[2]Cover Page'!$B$33","v":"Wolverhampton Energy from Waste Facility "}]
[]
["Monitoring of Ammnonia emissions ",null,null,"Whole Installation",null,null,"See  Notes in Cell Q3",null,null,{"$f":"+A3","v":"Monitoring of Ammnonia emissions "},null,null,null,"Per Combustion Line",null,null,"Notes:"]
[null,null,null,null,null,null,null,null,null,null,null,null,null,null,null,null,"User to add logic to complete Whole installation, Table A5:G18. From the data in Per Combustion Line, Table J6:O79, subject to No. of lines installed"]
["mg/Nm3","1/2 Hourly Reference Periods",null,null,"Daily Reference Periods"]
[{"$f":"+'[2]Cover Page'!C39","v":2023},"1/2 hourly NH3 ELV","Monthly 1/2 hourly mean","Highest 1/2 hourly maximum","Daily NH3 ELV*","Monthly daily mean","Highest daily maximum",null,null,{"$f":"+A6","v":2023},"mg/Nm3","Monthly 1/2 hourly mean","Monthly 1/2 hourly maximum","Monthly daily mean","Monthly daily maximum"]
["Jan","None",{"$f":"AVERAGE(L7,L22)","v":2.5},{"$f":"MAX(M7,M22)","v":28},"None",{"$f":"AVERAGE(N7,N22)","v":2.27},{"$f":"MAX(O7,O22)","v":5},null,null,"A1","Jan",4,20,3.8,5]
["Feb",{"$f":"+B7","v":"None"},1.5,12,"None",1.68,4,null,null,null,"Feb",3,8,3.03,4]
["Mar","None",4,224,"None",3.9350000000000001,15,null,null,null,"Mar",4,224,4.2,12,null,"Whole Installation table A5:G18:"]
["Apr","None",7.5,116,"None",19.115000000000002,20,null,null,null,"Apr",5,48,4.67,7,null,"Mean: for 1/2 hourly and daily periods calculate mean of values across all operational combustion lines for the month"]
["May","None",6.5,116,"None",6.3949999999999996,20,null,null,null,"May",3,25,3,6]
["Jun","None",6.5,164,"None",6.3900000000000006,22,null,null,null,"Jun",4,22,3.88,8]
["Jul","None",6.5,137,"None",5.9599999999999991,48,null,null,null,"Jul",3,23,2.88,5,null,"Maximum: for 1/2 hourly and daily periods use the highest value across all operational combustion lines for the month"]
["Aug","None",5,137,"None",4.8049999999999997,14,null,null,null,"Aug",6,137,5.8,14]
["Sep","None",9,230,"None",8.9499999999999993,49,null,null,null,"Sep",6,62,6.3,10]
["Oct","None",8.5,131,"None",8.1150000000000002,25,null,null,null,"Oct",5,29,5.07,7]
["Nov","None",12.5,94,"None",9.5250000000000004,15,null,null,null,"Nov",14,94,8.8000000000000007,11]
["Dec","None",4.5,64,15,4.1050000000000004,12,null,null,null,"Dec",5,32,5.16,8]
[null,null,null,null,"* ELV came into force on 3 December 2023",null,null,null,null,null,"Annual",{"$f":"AVERAGE(L7:L18)","v":5.166666666666667},{"$f":"MAX(M7:M18)","v":224},{"$f":"AVERAGE(N7:N18)","v":4.7158333333333333},{"$f":"MAX(O7:O18)","v":14}]
[]
[null,null,null,null,null,null,null,null,null,{"$f":"+A6","v":2023},"mg/Nm3","Monthly 1/2 hourly mean","Monthly 1/2 hourly maximum","Monthly daily mean","Monthly daily maximum"]
[null,null,null,null,null,null,null,null,null,"A2","Jan",1,28,0.74,5]
[null,null,null,null,null,null,null,null,null,null,"Feb",0,12,0.33,2]
[null,null,null,null,null,null,null,null,null,null,"Mar",4,58,3.67,15]
[null,null,null,null,null,null,null,null,null,null,"Apr",10,116,33.56,20]
[null,null,null,null,null,null,null,null,null,null,"May",10,116,9.7899999999999991,20]
[null,null,null,null,null,null,null,null,null,null,"Jun",9,164,8.9,22]
[null,null,null,null,null,null,null,null,null,null,"Jul",10,137,9.0399999999999991,48]
[null,null,null,null,null,null,null,null,null,null,"Aug",4,64,3.81,11]
[null,null,null,null,null,null,null,null,null,null,"Sep",12,230,11.6,49]
[null,null,null,null,null,null,null,null,null,null,"Oct",12,131,11.16,25]
[null,null,null,null,null,null,null,null,null,null,"Nov",11,59,10.25,15]
[null,null,null,null,null,null,null,null,null,null,"Dec",4,64,3.05,12]
[null,null,null,null,null,null,null,null,null,null,"Annual",{"$f":"AVERAGE(L22:L33)","v":7.25},{"$f":"MAX(M22:M33)","v":230},{"$f":"AVERAGE(N22:N33)","v":8.8249999999999993},{"$f":"MAX(O22:O33)","v":49}]
[]
[null,null,null,null,null,null,null,null,null,{"$f":"+A6","v":2023},"mg/Nm3","Monthly 1/2 hourly mean","Monthly 1/2 hourly maximum","Monthly daily mean","Monthly daily maximum"]
[null,null,null,null,null,null,null,null,null,"A3","Jan"]
[null,null,null,null,null,null,null,null,null,null,"Feb"]
[null,null,null,null,null,null,null,null,null,null,"Mar"]
[null,null,null,null,null,null,null,null,null,null,"Apr"]
[null,null,null,null,null,null,null,null,null,null,"May"]
[null,null,null,null,null,null,null,null,null,null,"Jun"]
[null,null,null,null,null,null,null,null,null,null,"Jul"]
[null,null,null,null,null,null,null,null,null,null,"Aug"]
[null,null,null,null,null,null,null,null,null,null,"Sep"]
[null,null,null,null,null,null,null,null,null,null,"Oct"]
[null,null,null,null,null,null,null,null,null,null,"Nov"]
["Comments :",null,null,null,null,null,null,null,null,null,"Dec"]
["An indicated ELV value of zero in the table above means that no ammonia limit is/was set in the permit.  ",null,null,null,null,null,null,null,null,null,"Annual",{"$f":"AVERAGE(L37:L48)","v":{"$error":"#DIV/0!"}},{"$f":"MAX(M37:M48)","v":0},{"$f":"AVERAGE(N37:N48)","v":{"$error":"#DIV/0!"}},{"$f":"MAX(O37:O48)","v":0}]
[]
[null,null,null,null,null,null,null,null,null,{"$f":"+A6","v":2023},"mg/Nm3","Monthly 1/2 hourly mean","Monthly 1/2 hourly maximum","Monthly daily mean","Monthly daily maximum"]
[null,null,null,null,null,null,null,null,null,"A4","Jan"]
[null,null,null,null,null,null,null,null,null,null,"Feb"]
[null,null,null,null,null,null,null,null,null,null,"Mar"]
[null,null,null,null,null,null,null,null,null,null,"Apr"]
[null,null,null,null,null,null,null,null,null,null,"May"]
[null,null,null,null,null,null,null,null,null,null,"Jun"]
[null,null,null,null,null,null,null,null,null,null,"Jul"]
[null,null,null,null,null,null,null,null,null,null,"Aug"]
[null,null,null,null,null,null,null,null,null,null,"Sep"]
[null,null,null,null,null,null,null,null,null,null,"Oct"]
[null,null,null,null,null,null,null,null,null,null,"Nov"]
[null,null,null,null,null,null,null,null,null,null,"Dec"]
[null,null,null,null,null,null,null,null,null,null,"Annual",{"$f":"AVERAGE(L52:L63)","v":{"$error":"#DIV/0!"}},{"$f":"MAX(M52:M63)","v":0},{"$f":"AVERAGE(N52:N63)","v":{"$error":"#DIV/0!"}},{"$f":"MAX(O52:O63)","v":0}]
[]
[null,null,null,null,null,null,null,null,null,{"$f":"+A6","v":2023},"mg/Nm3","Monthly 1/2 hourly mean","Monthly 1/2 hourly maximum","Monthly daily mean","Monthly daily maximum"]
[null,null,null,null,null,null,null,null,null,"A5","Jan"]
[null,null,null,null,null,null,null,null,null,null,"Feb"]
[null,null,null,null,null,null,null,null,null,null,"Mar"]
[null,null,null,null,null,null,null,null,null,null,"Apr"]
[null,null,null,null,null,null,null,null,null,null,"May"]
[null,null,null,null,null,null,null,null,null,null,"Jun"]
[null,null,null,null,null,null,null,null,null,null,"Jul"]
[null,null,null,null,null,null,null,null,null,null,"Aug"]
[null,null,null,null,null,null,null,null,null,null,"Sep"]
[null,null,null,null,null,null,null,null,null,null,"Oct"]
[null,null,null,null,null,null,null,null,null,null,"Nov"]
[null,null,null,null,null,null,null,null,null,null,"Dec"]
[null,null,null,null,null,null,null,null,null,null,"Annual",{"$f":"AVERAGE(L67:L78)","v":{"$error":"#DIV/0!"}},{"$f":"MAX(M67:M78)","v":0},{"$f":"AVERAGE(N67:N78)","v":{"$error":"#DIV/0!"}},{"$f":"MAX(O67:O78)","v":0}]